{"text_format":"1","workbook":"xlsx","n_sheets":9,"sheets":["Карточка CAPEX","свод по группе 2020","контроль полноты данных","Инструкция","table","technical","Лист1","Output_2023","БК "],"not_rendered":{"charts":1,"images":0,"macros":1,"external_links":1,"defined_names":16,"comments":6,"pivot_tables":1},"unopened":[],"bounds":{"document_bytes":16777216,"sheet_cells":100000,"rows_first":2000,"rows_last":500,"rows_between":2000,"halvings":0,"cell_chars":16384,"cell_head_chars":4096},"cells_cut":0,"cells_raw":0,"read":"whole","date_system":"1900"}

{"sheet":"Карточка CAPEX","index":0,"n_rows":38,"n_cols":31,"rows_kept":38,"cut":false,"hidden":false,"merged":[[37,30,38,57],[0,29,0,57],[2,29,2,57],[3,29,3,57],[6,29,6,57],[13,29,13,57],[14,29,15,57],[28,26,28,28],[13,0,13,28],[28,29,28,57],[30,29,33,57],[17,29,17,57],[31,0,31,8],[31,10,31,18],[31,20,31,28],[28,2,28,4],[28,6,28,8],[28,10,28,12],[28,14,28,16],[28,18,28,20],[28,22,28,24],[17,0,17,20],[26,0,26,20],[8,19,8,28],[9,19,9,28],[9,4,9,12],[8,4,8,12],[14,7,14,28],[35,0,35,8],[32,12,32,18],[35,10,35,18],[32,22,32,28],[35,20,35,28],[32,2,32,8],[2,21,2,28],[0,3,0,9],[0,22,0,28],[3,0,3,28],[6,0,6,28],[22,0,22,20],[16,21,16,24],[16,25,16,28],[23,0,23,20],[24,0,24,20],[16,0,16,20],[18,0,18,20],[19,0,19,20],[20,0,20,20],[21,0,21,20],[25,0,25,20],[22,25,22,28],[23,25,23,28],[17,21,17,24],[18,21,18,24],[19,21,19,24],[20,21,20,24],[21,21,21,24],[22,21,22,24],[23,21,23,24],[17,25,17,28],[18,25,18,28],[19,25,19,28],[20,25,20,28],[21,25,21,28],[24,21,24,24],[25,21,25,24],[26,21,26,24],[24,25,24,28],[25,25,25,28],[26,25,26,28]]}
["Заявитель",null,null,"Бакин",null,null,null,null,null,null,null,{"$f":"CONCATENATE(H15,\" \",V3)","v":"ЮЖН.036 3.1"},null,null,null,null,null,null,null,null,"ГОД",null,"2023",null,null,null,null,null,null,"Инструкция по заполнению"]
[]
["Наименование работы",null,null,null,null,null,null,null,null,null,null,null,null,null,null,null,null,"Код работ",null,null,null,"3.1",null,null,null,null,null,null,null,"Код работ необходимо указать из списка…"]
["Навес для ТБО",null,null,null,null,null,null,null,null,null,null,null,null,null,null,null,null,null,null,null,null,null,null,null,null,null,null,null,null,"Кратко описать основную суть планируемой работы."]
["(краткое описание работ)"]
["Цель"]
["Инфраструктура",null,null,null,null,null,null,null,null,null,null,null,null,null,null,null,null,null,null,null,null,null,null,null,null,null,null,null,null,"Описать цель достигнутую в результате выполнения работы"]
["(необходимость выполнения, планируемый результат)"]
["Инициатор ",null,null,null,"Шаров А.",null,null,null,null,null,null,null,null,null,"Исп. Фамилия "]
["отдел",null,null,null,"Управляющий Базой",null,null,null,null,null,null,null,null,null,"Исп.(отдел)",null,null,null,null,"Служба эксплуатации"]
[]
[]
["Локация (СТЦ, адрес, территория)"]
["СТЦ Планерная",null,null,null,null,null,null,null,null,null,null,null,null,null,null,null,null,null,null,null,null,null,null,null,null,null,null,null,null,"Указываетя база на которой планируется проведение работ. В случае отсутствия указать точный адрес, координаты и прочую информацию с указанием точной географической локации места проведения работ."]
["Кодификатор объекта",null,null,null,null,null,null,"ЮЖН.036",null,null,null,null,null,null,null,null,null,null,null,null,null,null,null,null,null,null,null,null,null,"Указать кодификатор объекта без знаков \": /\" . Использовать нижнее подчеркивание \"_\"\nВ случае отсутствия кодификатора инициировать присвоение кодификатора объекту"]
["Подробное описание работ, этапность работ, объемы работ"]
["Этапы работ",null,null,null,null,null,null,null,null,null,null,null,null,null,null,null,null,null,null,null,null,"объемы",null,null,null,"стоимость"]
["Проектирование\n",null,null,null,null,null,null,null,null,null,null,null,null,null,null,null,null,null,null,null,null,null,null,null,null,100000,null,null,null,"Подробное описание планируемых работ с указанием этапов работ. Например:\n1. Устройство плиты под СКУИ\n- разработка грунта/а/б покрытия на глубину 300 мм./проектную глубину - 100 кв.м.\n- отсыпка песком/щебнем с послойной трамбовкой - 100 кв.м.\n- устройство армирущей сетки 1 слой/2 слоя - 100 кв.м.\n- заливка бетоном толщиной 100 мм - 100 кв.м."]
["Демонтировать существующий навес 15х20",null,null,null,null,null,null,null,null,null,null,null,null,null,null,null,null,null,null,null,null,null,null,null,null,50000]
["Вынос опор, колодцев",null,null,null,null,null,null,null,null,null,null,null,null,null,null,null,null,null,null,null,null,"2 шт.",null,null,null,150000]
["Устройство фундамента 20х40",null,null,null,null,null,null,null,null,null,null,null,null,null,null,null,null,null,null,null,null,null,null,null,null,500000]
["Устройство металлоконструкций 20х40 х4 м",null,null,null,null,null,null,null,null,null,null,null,null,null,null,null,null,null,null,null,null,"3,5 т.",null,null,null,1000000]
["Освещение",null,null,null,null,null,null,null,null,null,null,null,null,null,null,null,null,null,null,null,null,null,null,null,null,30000]
["АПС",null,null,null,null,null,null,null,null,null,null,null,null,null,null,null,null,null,null,null,null,null,null,null,null,20000]
[]
[]
[]
[]
["Фото ",null,null,null,null,null,null,null,null,null,null,null,null,null,null,null,null,null,null,null,null,null,null,null,null,null,null,null,null,"Заполнить ссылками на фото. Инструкция по фотофиксации находится … ( в разработке)"]
["(ссылка на диск Х)"]
["Расчет стоимости с НДС",null,null,null,null,null,null,null,null,null,null,null,null,null,null,null,null,null,null,null,null,null,null,null,null,null,null,null,null,"Рачет стоимости "]
["Анализ расценки по КП",null,null,null,null,null,null,null,null,null,null,null,null,null,null,null,null,null,null,null,"Экспертная расценка заявителя"]
["Сумма ",null,null,null,null,null,null,null,null,null,"Сумма ",null,null,null,null,null,null,null,null,null,"Сумма ",null,{"$f":"SUM(Z18:AC27)","v":1850000}]
[]
["Методика расчета:",null,null,null,null,null,null,null,null,null,"Методика расчета:",null,null,null,null,null,null,null,null,null,"Методика расчета:"]
[]
[]
[null,null,null,null,null,null,null,null,null,null,null,null,null,null,null,null,null,null,null,null,null,null,null,null,null,null,null,null,null,null,"После заполнения нажать на кнопку \"Сохранить\". Перед началом заполнения новой формы нажать \"Очистка формы\" в верхней части страницы"]

{"sheet":"свод по группе 2020","index":1,"n_rows":48,"n_cols":6,"rows_kept":48,"cut":false,"hidden":true,"merged":[]}
[]
[null,"Решение2","(пусто)"]
[]
[null,"Сумма по полю Сумма (плановая стоимость работ), с НДС"]
[null,"Группа","Дивизион","Подразделение","Содержание (наименование работ)","Итог"]
[null,"Асфальтирование (полностью или частичное)",null,null,null,34094000]
[null,"Видеонаблюдение (доп.камеры, модернизация)",null,null,null,5892000]
[null,"Дороги",null,null,null,19000000]
[null,"Замена оборудования (фоновое)",null,null,null,15779900]
[null,"Кондиционирование и вентиляция",null,null,null,16733000]
[null,"Косметический ремонт, ремонт вывесок, благоустройство",null,null,null,17801970]
[null,"Новые МОП/СОП/ИОП",null,null,null,5800000]
[null,"Обновление разметки",null,null,null,11890000]
[null,"Оборудование в ТЗ",null,null,null,11100000]
[null,"Оборудование для автотехники",null,null,null,25326000]
[null,"Прочее",null,null,null,19354481]
[null,"Прочие помещения",null,null,null,9475000]
[null,"Ремонт инженерных систем (отопление, газ, электричество, канализация вентиляция)",null,null,null,32637700.780000001]
[null,"Ремонт кровли, установка снегозадержателей",null,null,null,47074000]
[null,"Ремонт полов",null,null,null,5280000]
[null,"Ремонт, замена светильников",null,null,null,8050000]
[null,"Ремонт, замена складов, навесов и пр.",null,null,null,36282000]
[null,"Ремонт, замена складского оборудования и стеллажей",null,null,null,19884096]
[null,"Ремонтные работы (фоновые)",null,null,null,20817000]
[null,"Складское оборудование и стеллажи (дополнительно)",null,null,null,550000]
[null,"Склады, навесы и складские системы",null,null,null,50652000]
[null,"Тех.освидетельствование стеллажей и СКУИ",null,null,null,2400000]
[null,"(пусто)",null,null,null,0]
[null,"Реконструкция очистных сооружений",null,null,null,20190000]
[null,"Бетонирование под стеллажами и скуи + замена-ремонт (существующие)",null,null,null,90649000]
[null,"Бетонирование под стеллажами (новые)",null,null,null,6454000]
[null,"Подпаллетники и паллетостопы",null,null,null,15360905.804]
[null,"Складское оборудование (дополнительно)","Прочие",null,null,120000]
[null,null,"СЗФО",null,null,835000]
[null,null,"СПБ",null,null,8800000]
[null,null,"ЦФО",null,null,16434480]
[null,"Стеллажи, консоли (дополнительно)","Прочие",null,null,1000000]
[null,null,"СЗФО",null,null,6750000]
[null,null,"СПБ",null,null,33500000]
[null,null,"ЦФО",null,null,11695775]
[null,"Пожарка (минимум)","Прочие",null,null,140000]
[null,null,"СЗФО",null,null,5030000]
[null,null,"СПБ",null,null,13700000]
[null,null,"ЦФО",null,null,3085000]
[null,"Пожарка (максимум)","Прочие",null,null,5550000]
[null,null,"СПБ",null,null,7000000]
[null,null,"ЦФО",null,null,34900000]
[null,"Общий итог",null,null,null,697067308.58399999]

{"sheet":"контроль полноты данных","index":2,"n_rows":76,"n_cols":6,"rows_kept":76,"cut":false,"hidden":true,"merged":[]}
["Дивизион","Подразделение","комменты по 2019","список работ на 2020","оцифровано на 2020","проверено Казьмин А. на 2020"]
["СПб","СПб"]
["СПб","Василеостровская","есть","есть","есть"]
["СПб","Всеволожск","есть","есть","есть"]
["СПб","Ленинский","есть","есть","есть"]
["СПб","Индустриальный","есть","есть","есть"]
["СПб","Мурманка","есть","есть","есть"]
["СПб","Планерная","есть","есть","есть"]
["СПб","Парнас","есть","есть","есть"]
["СПб","Славянка","есть","есть","есть"]
["СПб","КАД_Север","есть","есть","есть"]
["СПб","Салова","не надо","не надо","не надо"]
["СПб","Таллинка","не надо","не надо","не надо"]
["СПб","Софийская","есть","есть","есть"]
["СПб","Таллинское ш. (2)","есть","есть","нет"]
["СПб","Пискаревский","есть","есть","есть"]
["СПб","РЦ Новосаратовка","есть","есть","есть"]
["СПб","РЦ Салова","не надо","не надо","не надо"]
["СПб","Оптовая","не надо","не надо","не надо"]
["СПб","ОтдПоРазвОптовыхПродаж","не надо","не надо","не надо"]
["СПб","ОтдПоСопровОптовыхПродаж","не надо","не надо","не надо"]
["СЗФО","СЗФО"]
["СЗФО","Выборг","есть","есть","есть"]
["СЗФО","Гатчина","есть","есть","есть"]
["СЗФО","Кингисепп","есть","есть","нет"]
["СЗФО","Луга","есть"]
["СЗФО","Офис продаж Луга (Мшинск)","есть","есть","есть"]
["СЗФО","Новгород","есть","есть","есть"]
["СЗФО","Петрозаводск","есть","есть","есть"]
["СЗФО","Оптовый_СЗФО","не надо","не надо","не надо"]
["Москва","Москва"]
["Москва","Алтуфьево","есть","есть","есть"]
["Москва","Горьковское шоссе","есть","есть","есть"]
["Москва","Новая Рига","есть","есть","нет"]
["Москва","Новорязанское ш.","есть","есть","есть"]
["Москва","Калуга","не надо","не надо","не надо"]
["Москва","Владимир","не надо","не надо","не надо"]
["Москва","Вся Россия","не надо","не надо","не надо"]
["Москва","Симферопольское ш.","есть","есть","есть"]
["Москва","Моб_офис продаж (Мытищи)","есть","есть","есть"]
["Москва","Моб_офис продаж (Химки)","есть","есть","есть"]
["Москва","Моб_офис продаж (Андреевка)","есть","есть","есть"]
["Москва","МОП Лобня","есть","есть","есть"]
["Москва","МОП Солнечногорск","есть","есть","есть"]
["Москва","СОП Мытищи","есть","есть","есть"]
["Москва","СОП Останкино","есть","есть","есть"]
["Москва","СОП Владимир","есть","есть","есть"]
["Москва","ИОП Афимол","есть","есть","есть"]
["Москва","ИОП Коламбус","есть","есть","есть"]
["Москва","МОП_....","есть","есть","есть"]
["Москва","Москва_Управление"]
["Москва","Оптовый_Тверь","не надо","не надо","не надо"]
["Москва","Оптовый_Москва","не надо","не надо","не надо"]
["ЦФО","ЦФО"]
["ЦФО","Тверь","есть","есть","есть"]
["Прочие","Прочие"]
["Прочие","БЭК-офис"]
["Прочие","Колл-Центр Новгород"]
["Прочие","Медиа","не надо","не надо","не надо"]
["Прочие","Отдел логистики","не надо","не надо","не надо"]
["Прочие","Охрана","не надо","не надо","не надо"]
["Прочие","Распределяемые по выручке","не надо","не надо","не надо"]
["Прочие","Сабировская"]
["Прочие","Служба эксплуатации"]
["Прочие","Управление"]
["Прочие","Распред_по  выручке_Москва ","не надо","не надо","не надо"]
["Прочие","Распред_по  выручке_СЗФО ","не надо","не надо","не надо"]
["Прочие","Технокомплекс"]
["Прочие","Онтарио"]
["Прочие","Лорио"]
["Прочие","Вико"]
["Малые организации","Малые организации"]
["Малые организации","ЛСК","у Вити","у Вити","у Вити"]
["Малые организации","ПСС","у Вити","у Вити","у Вити"]
["Малые организации","Силта","у Вити","у Вити","у Вити"]
["Малые организации","Петроцентр","у Вити","у Вити","у Вити"]

{"sheet":"Инструкция","index":3,"n_rows":39,"n_cols":4,"rows_kept":39,"cut":false,"hidden":true,"merged":[[4,2,5,2]]}
["Инвестиции","Файл для планирования","Кто планирует"]
["Проекты развития","шаблон отдельно на каждый проект","Рук.проекта + Отдел развития + Группа открытия"]
["Земельные участки","шаблон отдельно на каждый проект","Отдел развития"]
["Сущ.объекты инфраструктуры "]
["Поддержание инфраструктуры (в т.ч.ремонты) ","шаблон \"Инвестиции_ППР_РИ_ТЗ 2020\"","-УБ совместно с инженером объкета и Романовым Р.\n-Рук. РЦ/КЦ/МОП, СОП, ИОП/ ОП/ЦО\n-Прохоров С.","в этом файле"]
["Развитие инфраструктуры ","шаблон \"Инвестиции_ППР_РИ_ТЗ 2020\"",null,"в этом файле"]
["Проектные задачи на 2019","шаблон \"Проекты СМК 2020\"","централизованно Финансы"]
["ПО,лицензии, тех.поддержка, оборудование"]
["Лизинг автотранспорта  (действующий) ","шаблон \"Лизинг 2020\"","централизованно Финансы"]
["Лизинг автотранспорта (новый), в т.ч.продажа в трейд ин","шаблон \"Лизинг 2020\"","централизованно Финансы по плану от ОЭАХ"]
["Оснащение рабочих мест","шаблон \"Оснащение рабочих мест 2020\"","централизованно Финансы"]
["Требования законодательства  в т.ч. "]
["       Охрана труда","шаблон \"Инвестиции_ППР_РИ_ТЗ 2020\"","Асмаковская Г. централизованно по всем объектам","в этом файле"]
["       Противопожарная безопасность ","шаблон \"Инвестиции_ППР_РИ_ТЗ 2020\"","Лукьянов Н.И. централизованно по всем объектам","в этом файле"]
["       Охрана окружающей среды ","шаблон \"Экология 2020\"","Воробьева Е. централизованно по всем объектам"]
["Другое ","шаблон \"Инвестиции_ППР_РИ_ТЗ 2020\"","Дурандина Ю.Л. централизованно по всем объектам\nДюкова Е. централицованно по всем объектам\nРыбинкин А. централизованно по всем объектам","в этом файле"]
[]
[]
["План-график","Сроки"]
["Отправка шаблона для начала планирования – отв. Ренн О.","2019-08-06","выполнено"]
["Формирование списка работ – отв. УБ/РЦ/КЦ/МОП/ОП/функция, если централизованное планирование","2019-08-15","выполнено"]
["Оцифровка стоимости и отправка в финансы для консолидации - отв. УБ/РЦ/КЦ/МОП/ОП/функция, если централизованное планирование","2019-09-06","выполнено"]
["Проверка корректности стоимости работ по списку от УБ – отв. Казьмин А.П.","2019-09-20"]
["Передача заполненных шаблонов для консолидации бизнес-партнеру (БП).","2019-09-23"]
["Указание пр.аналитики (направление, статья, сарех/орех) + подготовка данных для первой защиты – отв. БП + Чурилова Е.А. в части полноты аналитики.","2019-09-20"]
["Защита по объектам ЦФО с Директором дивизиона + Фин.директор","2019-09-27","ЦФО"]
["Защита по объектам СЗФО с Директором дивизиона/Управляющим сетью + Фин.директор","2019-10-03","СПБ + СЗФО"]
["Первая защита у Ген.директора (часть 1)","2019-10-08","СПБ + СЗФО"]
["Первая защита у Ген.директора (часть 2)",null,"ЦФО"]
[]
[]
["Управляющий СТЦ\nПрохоров С. (по Сабировской)","Управляющий РЦ/КЦ/МОП, СОП, ИОП/ОП/ЦО:","Асмаковская Г./Лукьянов Н.И./Дурандина Ю.С.:"]
["1. На листе \"бюджет 2019\":\n- в столбце AJ указать статус выполнения работ в 2019 (выполнено/будет завершено до конца 2019/отменено/перенос на 2020)\n- утвержденные работы, которые необходимо перенести на 2020 включить в план на 2020 на листе \"бюджет 2020\"","1. На листе \"бюджет 2019\":\n- в столбце AJ указать статус выполнения работ в 2019 (выполнено/будет завершено до конца 2019/отменено/перенос на 2020)\n- утвержденные работы, которые необходимо перенести на 2020 включить в план на 2020 на листе \"бюджет 2020\"","1. На листе \"бюджет 2019\":\n- в столбце AJ указать статус выполнения работ в 2019 (выполнено/будет завершено до конца 2019/отменено/перенос на 2020)\n- утвержденные работы, которые необходимо перенести на 2020 включить в план на 2020 на листе \"бюджет 2020\""]
["2. Лист \"бюджет 2020\" запланировать совместно с инженером объекта и Романовым Р.:\n- включить переходящие работы с 2019 года, в столбце T указать \"переходящие\"\n- включить новые работы на 2020\n- поля, которые необходимо заполнить Инициатору отмечены в строке 4 признаком \"Инициатор\". Цветом отмечены обязательные к заполнению.","2. Лист \"бюджет 2020\":\n- включить переходящие работы с 2019 года, в столбце T указать \"переходящие\"\n- включить новые работы на 2020\n- поля, которые необходимо заполнить Инициатору отмечены в строке 4 признаком \"Инициатор\". Цветом отмечены обязательные к заполнению.","2. Лист \"бюджет 2020\" запланировать централизованно по всем объектам:\n- включить переходящие работы с 2019 года, в столбце T указать \"переходящие\"\n- включить новые работы на 2020\n- поля, которые необходимо заполнить Инициатору отмечены в строке 4 признаком \"Инициатор\". Цветом отмечены обязательные к заполнению."]
["3. Итоговый файл направить на Ренн О. для консолидации","3. Итоговый файл направить на Ренн О. для консолидации","3. Итоговый файл направить на Ренн О. для консолидации"]
[]
[]
["Бизнес-партнер/Фин.контролер:","Бизнес-партнер/Фин.контролер:","Бизнес-партнер/Фин.контролер:"]
["1. Лист \"бюджет 2020\":\n- поля, которые необходимо заполнить Бизнес-партнеру/Фин.контролеру отмечены в строке 4 признаком \"БП\"","1. Лист \"бюджет 2020\":\n- поля, которые необходимо заполнить Бизнес-партнеру/Фин.контролеру отмечены в строке 4 признаком \"БП\"","1. Лист \"бюджет 2020\":\n- поля, которые необходимо заполнить Бизнес-партнеру/Фин.контролеру отмечены в строке 4 признаком \"БП\""]

{"sheet":"table","index":4,"n_rows":1,"n_cols":17,"rows_kept":1,"cut":false,"hidden":false,"merged":[]}
["N","Подразделение","Заявитель","Кодификатор","Категория","наименование работ","Цель работ","Состав работ","Группа","Сумма (плановая стоимость работ), с НДС","Ответственный за заполнение (инициатор)","Светофор","Организация","Объект деятельности/Проект","Направление развития инфраструктуры","Начало периода","Конец периода"]

{"sheet":"technical","index":5,"n_rows":1,"n_cols":22,"rows_kept":1,"cut":false,"hidden":false,"merged":[]}
["N","Подразделение","Заявитель","Кодификатор","Категория","Содержание (наименование работ)","Комментарии (цели)","Доп.комментарии (состав работ)","Группа","Сумма (плановая стоимость работ), с НДС","2023","2024","2025","check","Ответственный за заполнение (инициатор)","Светофор","ЦФО","Организация","Объект деятельности/Проект","Направление развития инфраструктуры","Начало периода","Конец периода"]

{"sheet":"Лист1","index":6,"n_rows":41,"n_cols":12,"rows_kept":41,"cut":false,"hidden":false,"merged":[]}
[1,"Кровля"]
["1.1","Кровля кап.ремонт",{"$f":"COUNTIF(Output_2023!E:E, \"*1.1*\")","v":2}]
["1.2","Кровля тек.ремонт",{"$f":"COUNTIF(Output_2023!E:E, \"*1.2*\")","v":15}]
[2,"Благоустройство",null,null,null,null,null,null,null,null,"№","Отделы"]
["2.1","Благоустройтсво кап.ремонт",{"$f":"COUNTIF(Output_2023!E:E, \"*2.1*\")","v":14},null,null,null,null,null,null,null,1,"Служба эксплуатации"]
["2.2","Благоустройство тек.рем",{"$f":"COUNTIF(Output_2023!E:E, \"*2.2*\")","v":26},null,null,null,null,null,null,null,2,"Тех.обслуж. и ремонта"]
["3","Ремонты зданий",null,null,null,null,null,null,null,null,3,"Отд. Логистики склада"]
["3.1","Кап. Ремонт ЗиС",{"$f":"COUNTIF(Output_2023!E:E, \"*3.1*\")","v":0},null,null,null,null,null,null,null,4,"Отд. Развития"]
["3.2","Тек.ремонт ЗиС",{"$f":"COUNTIF(Output_2023!E:E, \"*3.2*\")","v":34},null,null,null,null,null,null,null,5,"Отд. по Взаимод. с Органами Власти"]
["4","Электросети",null,null,null,null,null,null,null,null,6,"Отд.Экологии"]
["4.1","Кап.рем. Эл.сетей",{"$f":"COUNTIF(Output_2023!E:E, \"*4.1*\")","v":4},null,null,null,null,null,null,null,7,"Отд.Пож.Безопасности"]
["4.2","Тек.рем.эл.сетей",{"$f":"COUNTIF(Output_2023!E:E, \"*4.2*\")","v":15},null,null,null,null,null,null,null,8,"Управляющий Базой"]
["5","Тепловые сети"]
["5.1","ТС капитальные",{"$f":"COUNTIF(Output_2023!E:E, \"*5.1*\")","v":1}]
["5.2","ТС текущие",{"$f":"COUNTIF(Output_2023!E:E, \"*5.2*\")","v":1}]
["6","Канал. Сети (ХВС, ГВС, ОК)"]
["6.1","ХВС, ГВС, ОК капитальные",{"$f":"COUNTIF(Output_2023!E:E, \"*6.1*\")","v":1},null,null,null,null,null,null,null,"№","Базы"]
["6.2","ХВС, ГВС, ОК Текущие",{"$f":"COUNTIF(Output_2023!E:E, \"*6.2*\")","v":10},null,null,null,null,null,null,null,1,"Н.Девяткино"]
["7","Проектирование",null,null,null,null,null,null,null,null,2,"Полевая Сабировская 49"]
["7.1","Обслед., актуализация схем",{"$f":"COUNTIF(Output_2023!E:E, \"*7.1*\")","v":31},null,null,null,null,null,null,null,3,"СТЦ Выборг"]
["8","Закупка ПО",null,null,null,null,null,null,null,null,4,"СТЦ Гатчина"]
["8.1","Прогр.обеспечение",{"$f":"COUNTIF(Output_2023!E:E, \"*8.1*\")","v":2},null,null,null,null,null,null,null,5,"СТЦ Горьковское"]
["9","СПС и СОУЭ",null,null,null,null,null,null,null,null,6,"СТЦ Дмитровское"]
["9.1","СПС и СОУЭ Капитальные",{"$f":"COUNTIF(Output_2023!E:E, \"*.1*\")","v":69},null,null,null,null,null,null,null,7,"СТЦ Индустриальный"]
["9.2","СПС и СОУЭ Текущие",{"$f":"COUNTIF(Output_2023!E:E, \"*9.2*\")","v":10},null,null,null,null,null,null,null,8,"СТЦ КАД Север"]
["10","Сети (ГСМ, газ)",null,null,null,null,null,null,null,null,9,"СТЦ Кингисепп"]
["10.1","Сети (ГСМ, газ)Капитальные",{"$f":"COUNTIF(Output_2023!E:E, \"*10.1*\")","v":2},null,null,null,null,null,null,null,10,"СТЦ Луга"]
["10.2","Сети (ГСМ, газ)Текущие",{"$f":"COUNTIF(Output_2023!E:E, \"*10.2*\")","v":1},null,null,null,null,null,null,null,11,"СТЦ М.Слявянка"]
["11","СКУД",null,null,null,null,null,null,null,null,12,"СТЦ Мурманка"]
["1.1","СКУД Капитальные",{"$f":"COUNTIF(Output_2023!E:E, \"*11.1*\")","v":0},null,null,null,null,null,null,null,13,"СТЦ Мурманка 2"]
["11.2","СКУД Текущие",{"$f":"COUNTIF(Output_2023!E:E, \"*11.2*\")","v":3},null,null,null,null,null,null,null,14,"СТЦ Н.Рижское"]
["12","ВиК",null,null,null,null,null,null,null,null,15,"СТЦ Новгород"]
["12.1","ВиК Капитальные",{"$f":"COUNTIF(Output_2023!E:E, \"*12.1*\")","v":9},null,null,null,null,null,null,null,16,"СТЦ Новорязанское"]
["12.2","ВиК Текущие",{"$f":"COUNTIF(Output_2023!E:E, \"*12.2*\")","v":3},null,null,null,null,null,null,null,17,"СТЦ Парнас"]
[13,"СКУИ",null,null,null,null,null,null,null,null,18,"СТЦ Петрозаводск"]
[null,null,null,null,null,null,null,null,null,null,19,"СТЦ Планерная"]
[null,null,null,null,null,null,null,null,null,null,20,"СТЦ Симферопольское"]
[null,null,null,null,null,null,null,null,null,null,21,"СТЦ Софийская"]
[null,null,null,null,null,null,null,null,null,null,22,"СТЦ Таллинское"]
[null,null,null,null,null,null,null,null,null,null,23,"СТЦ Таллинское 2"]
[null,null,null,null,null,null,null,null,null,null,24,"СТЦ Тверь"]

{"sheet":"Output_2023","index":7,"n_rows":365,"n_cols":29,"rows_kept":365,"cut":false,"hidden":false,"merged":[]}
["N","Подразделение","Кодификатор","Статья оборотов (ДДС)","Категория","Содержание (наименование работ)","Перенос/новая работа","Комментарии (цели)","Доп.комментарии (состав работ)","Группа","Сумма (плановая стоимость работ), с НДС","2023","2024","2025","check","Ответственный за заполнение (инициатор)","Светофор","Расширение ассортимента","Под какой ассортимент","Дивизион","Аванс (сумма)","НДС","ЦФО","Организация","Объект деятельности/Проект","Направление развития инфраструктуры","Начало периода","Конец периода"]
[null,"Горьковское",null,"Текущие ремонтные и эксплуатационные расходы",null,"Замена уличных эл. Щитов 4 шт. ","новая работа","ПРОГ. Коррозия нарушение герметичности по 20 в год, 16 в 2024 году",null,null,560000,160000,400000,null,null,"Борщев С.А.","желтый",null,null,null,null,null,"СЭ",null,null,null,"3 кв.","3 кв."]
[null,"Горьковское",null,"Текущие ремонтные и эксплуатационные расходы",null,"Покраска лестниц СКУИ (склад 9)","новая работа","Очистка,покраска",null,null,250000,{"$f":"K3","v":250000},null,null,null,"Борщев С.А.","белый",null,null,null,null,null,"СЭ",null,null,null,"2 кв.","2 кв."]
[null,"Горьковское",null,"Приобретение произ-го, торг-го и складского оборудования",null,"Монтаж водосточной системы на ангарах 12 Ангаров","новая работа","ГРК 14-22, 28-30 (300*12), водосточной системы не было",null,null,{"$f":"300000*12","v":3600000},{"$f":"K4","v":3600000},null,null,null,"Борщев С.А.","белый",null,null,null,null,null,"СЭ",null,null,null,"2 кв.","2 кв."]
[null,"Горьковское",null,"Текущие ремонтные и эксплуатационные расходы",null,"Автоматизация уличного освещения  и рекламы","новая работа","датчики света, реле времеи",null,null,100000,100000,null,null,null,"Борщев С.А.","белый",null,null,null,null,null,"СЭ",null,null,null,"2 кв.","3 кв."]
[null,"Горьковское",null,"Капитальные строительные работы, в т.ч. Материалы",null,"Устройство ЖБ плит консольных стеллажей склада № 8 (3 шт.)","новая работа","Всего 8 шт. ПРОГ. 23,24,25 по 3 - 2023 и 2024, 2 - 2025",null,null,10560000,3960000,3960000,{"$f":"3960000/3*2","v":2640000},null,"Борщев С.А.","желтый",null,null,null,null,null,"СЭ",null,null,null,"2 кв.","3 кв."]
[null,"Горьковское",null,"Текущие ремонтные и эксплуатационные расходы",null,"Перенос светильников в ряды с добавлением светильников на мезанине теплого склада","новая работа","Перенос светильников в ряды",null,null,600000,{"$f":"K7","v":600000},null,null,null,"Борщев С.А.","красный",null,null,null,null,null,"СЭ",null,null,null,"1 кв.","2 кв."]
[null,"Горьковское",null,"Текущие ремонтные и эксплуатационные расходы",null,"Перенос светильников освещения на заборе возле склада № 8 ","новая работа","увеличение стоек светильников (уточнить у НСК)",null,null,200000,{"$f":"K8","v":200000},null,null,null,"Борщев С.А.","белый",null,null,null,null,null,"СЭ",null,null,null,"2 кв.","2 кв."]
[null,"Горьковское",null,"Текущие ремонтные и эксплуатационные расходы",null,"Устройство огнезащиты, кровля, огнезащита вокруг дымоудаления","новая работа","Замечание ВО, СМР, отсутствуют огнезащита вокруг дымоудаления",null,null,200000,200000,null,null,null,"Борщев С.А.","желтый",null,null,null,null,null,"СЭ",null,null,null,"3 кв. ","4 кв."]
[null,"Горьковское",null,"Текущие ремонтные и эксплуатационные расходы",null,"Устройство заземляющего контура заземления на всей уличной территории ","новая работа","Проетирование и СМР заземления нет",null,null,500000,500000,null,null,null,"Борщев С.А.","желтый",null,null,null,null,null,"СЭ",null,null,null,"2 кв.","3 кв."]
[null,"Горьковское",null,"Текущие ремонтные и эксплуатационные расходы",null,"Устройство кабельного лотка, кабель питания аккумуляторной ","новая работа","Замечание ВО, СМР ,проложен по забору на крюках (без защиты от УФ излучения, без кабеленесущий конструкций);",null,null,150000,150000,null,null,null,"Борщев С.А.","желтый",null,null,null,null,null,"СЭ",null,null,null,"2 кв.","3 кв."]
[null,"Горьковское",null,"Текущие ремонтные и эксплуатационные расходы",null,"Замена распределительных коробок","новая работа","Замечание ВО, СМР  требуют замены",null,null,80000,80000,null,null,null,"Борщев С.А.","желтый",null,null,null,null,null,"СЭ",null,null,null,"2 кв.","2 кв."]
[null,"Горьковское",null,"Текущие ремонтные и эксплуатационные расходы",null,"Устройство контура заземления, место нарезки","новая работа","Замечание ВО, СМР, отсутствует присоединение к контуру заземления, отсутствуют аппараты УЗО на розетках и осветительном оборудовании;",null,null,120000,120000,null,null,null,"Борщев С.А.","желтый",null,null,null,null,null,"СЭ",null,null,null,"2 кв.","2 кв."]
[null,"Горьковское",null,"Текущие ремонтные и эксплуатационные расходы",null,"Устройство контура заземления, помещение для оборудования плазморезки","новая работа","Замечание ВО, СМР, отсутствует присоединение к контуру заземления, отсутствуют аппараты УЗО на розетках и осветительном оборудовании;",null,null,120000,120000,null,null,null,"Борщев С.А.","желтый",null,null,null,null,null,"СЭ",null,null,null,"2 кв.","3 кв."]
[null,"Горьковское",null,"Текущие ремонтные и эксплуатационные расходы",null,"Устройство кабельного лотка, КЛ освещения со стороны Горьковского ш. ","новая работа","Замечание ВО, СМР,  проложены по низу забора 3D (отсутствует защита от механических повреждений, отсутствуют кабеленесущие конструкции)",null,null,400000,400000,null,null,null,"Борщев С.А.","желтый",null,null,null,null,null,"СЭ",null,null,null,"2 кв.","3 кв."]
[null,"Горьковское",null,"Текущие ремонтные и эксплуатационные расходы",null,"Электропитание кондиционирования выполнить через независимые расцепители с интеграцией в АППЗ","новая работа","Замечание ВО, СМР ",null,null,200000,200000,null,null,null,"Борщев С.А.","желтый",null,null,null,null,null,"СЭ",null,null,null,"2 кв.","3 кв."]
[null,"Горьковское",null,"Текущие ремонтные и эксплуатационные расходы",null,"Устройство байпаса на кондиционировании фильтра-осушители","новая работа","Замечание ВО, СМР ",null,null,250000,250000,null,null,null,"Борщев С.А.","желтый",null,null,null,null,null,"СЭ",null,null,null,"3 кв. ","4 кв."]
[null,"Горьковское",null,"Текущие ремонтные и эксплуатационные расходы",null,"Устройство аэраторов, кровля","новая работа","Замечание ВО, СМР, отсутствуют аэраторы",null,null,50000,50000,null,null,null,"Борщев С.А.","желтый",null,null,null,null,null,"СЭ",null,null,null,"2 кв.","3 кв."]
[null,"Горьковское",null,"Текущие ремонтные и эксплуатационные расходы",null,"Герметизация деформационных швов, торговый зал","новая работа","Замечание ВО, СМР ",null,null,300000,300000,null,null,null,"Борщев С.А.","желтый",null,null,null,null,null,"СЭ",null,null,null,"1 кв.","2 кв."]
[null,"Горьковское",null,"Текущие ремонтные и эксплуатационные расходы",null,"Восстановление огнезащиты  металоконструкций (колонны, связи), теплый склад ","новая работа","Замечание ВО, СМР, Диагностика",null,null,500000,500000,null,null,null,"Борщев С.А.","желтый",null,null,null,null,null,"СЭ",null,null,null,"1 кв.","2 кв."]
[null,"Горьковское",null,"Текущие ремонтные и эксплуатационные расходы",null,"Восстановение отмостки возле водомера","новая работа","Замечание ВО, СМР , перебрать плитку и бордюр с торца здания",null,null,400000,400000,null,null,null,"Борщев С.А.","желтый",null,null,null,null,null,"СЭ",null,null,null,"3 кв. ","4 кв."]
[null,"Горьковское",null,"Текущие ремонтные и эксплуатационные расходы",null," Устройства для открывания окон, расположить не выше 1,7 м от уровня площадки лестничной клетки. (ЛК в АБК)","новая работа","Замечание ПБ, СМР",null,null,80000,80000,null,null,null,"Борщев С.А.","желтый",null,null,null,null,null,"СЭ",null,null,null,"2 кв.","3 кв."]
[null,"Горьковское",null,"Текущие ремонтные и эксплуатационные расходы",null,"Устройство перед наружной дверью (эвакуационный выход из АБК) горизонтальной металлической площадки с шириной не менее 1,5, теплый склад","новая работа","Замечание ПБ, СМР",null,null,70000,70000,null,null,null,"Борщев С.А.","желтый",null,null,null,null,null,"СЭ",null,null,null,"2 кв.","3 кв."]
[null,"Горьковское",null,"Текущие ремонтные и эксплуатационные расходы",null,"Замена лестницы на ГРК 014","новая работа","Замечание ПБ, Пректирование СМР",null,null,390000,390000,null,null,null,"Борщев С.А.","желтый",null,null,null,null,null,"СЭ",null,null,null,"2 кв.","2 кв."]
[null,"Горьковское",null,"Текущие ремонтные и эксплуатационные расходы",null,"Ремонт асфальта","новая работа","Ремонт в ходе эксплуатации, латочный ремонт",null,null,2000000,2000000,null,null,null,"Борщев С.А.","зеленый",null,null,null,null,null,"СЭ","Петрович",null,null,"2 кв.","3 кв."]
[null,"Горьковское",null,"Текущие ремонтные и эксплуатационные расходы",null,"Ремонт оснований стеллажей бетонных вдоль ангаров ангаров ","новая работа","Демонтаж, бетонирование, монтаж защитного уголка, сварочные работы",null,null,200000,200000,null,null,null,"Борщев С.А.","желтый",null,null,null,null,null,"СЭ","Петрович",null,null,"2 кв.","2 кв."]
[null,"Горьковское",null,"Текущие ремонтные и эксплуатационные расходы",null,"Устройство аварийного освещения в ТЗ и складе ","новая работа","Требования ПБ",null,null,1500000,1500000,null,null,null,"Борщев С.А.","желтый",null,null,null,null,null,"СЭ",null,null,null,"1 кв.","2 кв. "]
[null,"Горьковское",null,"Приобретение произ-го, торг-го и складского оборудования",null,"368 Устройство вентиляции на 2-х этажах уличных складов (4 ангара)","перенос","Проетирование и СМР, ранее выполненные работы результатов не дали","бюджет 2022 1 440 000 был в ЦФО УБ",null,1600000,1600000,null,null,null,"Борщев С.А.","красный",null,null,null,null,null,"СЭ",null,null,null,"1 кв.","3 кв."]
[null,"Горьковское",null,"Капитальные строительные работы, в т.ч. Материалы",null,"Диспетчеризация АПС","новая работа","Требования ПБ",null,null,100000,100000,null,null,null,"Борщев С.А.","желтый",null,null,null,null,null,"СЭ",null,null,null,"1 кв.","2 кв. "]
[null,"Дмитровское",null,"Текущие ремонтные и эксплуатационные расходы",null,"Ремонт асфальта","новая работа","Пост гарантийный ремонт в ходе эксплуатации, латочный ремонт",null,null,1200000,1200000,null,null,null,"Борщев С.А.","белый",null,null,null,null,null,"СЭ",null,null,null,"2 кв.","3 кв."]
[null,"Дмитровское",null,"Текущие ремонтные и эксплуатационные расходы",null,"Ремонт оснований колон ангаров ","новая работа","Демонтаж, бетонирование, монтаж защитного уголка, сварочные работы",null,null,200000,200000,null,null,null,"Борщев С.А.","желтый",null,null,null,null,null,"СЭ",null,null,null,"2 кв.","2 кв."]
[null,"Дмитровское",null,"Текущие ремонтные и эксплуатационные расходы",null,"Ремонт водостока ангаров","новая работа","Монтаж/демонтаж, замена",null,null,250000,250000,null,null,null,"Борщев С.А.","желтый",null,null,null,null,null,"СЭ",null,null,null,"2 кв.","2 кв."]
[null,"Дмитровское",null,"Текущие ремонтные и эксплуатационные расходы",null,"Ремонт рекламных конструкций ","новая работа","Замена светодиодных модулей букв, ламп",null,null,150000,150000,null,null,null,"Борщев С.А.","желтый",null,null,null,null,null,"СЭ",null,null,null,"1 кв.","4 кв."]
[null,"Дмитровское",null,"Текущие ремонтные и эксплуатационные расходы",null,"Перенос коммутации центральной вывески в электрический щит на кровле ТЗ","новая работа","Действующая коммутация находится на открытом воздухе. Предлагается перенести все в эл. щит",null,null,240000,240000,null,null,null,"Борщев С.А.","белый",null,null,null,null,null,"СЭ",null,null,null,"2 кв.","2 кв."]
[null,"Дмитровское",null,"Текущие ремонтные и эксплуатационные расходы",null,"Ремонт напольного бетонного покрытия здания магазина","новая работа","Ремонт в ходе эксплуатации",null,null,360000,360000,null,null,null,"Борщев С.А.","желтый",null,null,null,null,null,"СЭ",null,null,null,"2 кв.","3 кв."]
[null,"Дмитровское",null,"Приобретение произ-го, торг-го и складского оборудования",null,"Быстрая штора на склад","новая работа","Монтаж быстрой шторы вместо секционных ворот между теплым и холодным складом для экономии тепла",null,null,660000,660000,null,null,null,"Борщев С.А.","красный",null,null,null,null,null,"СЭ",null,null,null,"1 кв.","1 кв."]
[null,"Дмитровское",null,"Текущие ремонтные и эксплуатационные расходы",null,"Перенос щита управления из колодца (ЛОС)","новая работа","Эксплуатация оборудования в колодце не возможна (щит неисправен из-за влажности)",null,null,450000,450000,null,null,null,"Борщев С.А.","желтый",null,null,null,null,null,"СЭ",null,null,null,"1 кв.","2 кв.","Уточнить чтоимость"]
[null,"Дмитровское",null,"Текущие ремонтные и эксплуатационные расходы",null,"Восстановление бетонной поверхности подпорной стенки. Между РЦ и СТЦ","новая работа","Защита подпорной стенки между 2 и 3 очередью строительства, штукатурка, гидроизоляйия",null,null,420000,420000,null,null,null,"Борщев С.А.","желтый",null,null,null,null,null,"СЭ",null,null,null,"2 кв.","2 кв."]
[null,"Дмитровское",null,"Проектно-изыскательские работы, получение ТУ",null,"Затраты на услуги сметчика","новая работа","Гарантийные обязательства. Претензионная работа с Застройщиком",null,null,420000,420000,null,null,null,"Борщев С.А.","белый",null,null,null,null,null,"СЭ",null,null,null,"1 кв.","4 кв."]
[null,"Дмитровское",null,"Текущие ремонтные и эксплуатационные расходы",null,"Теплоизоляция емкостей запаса воды","новая работа","Гарантийные обязательства. Устранение конденсата (нанесение пенополиуретана)",null,null,360000,360000,null,null,null,"Борщев С.А.","желтый",null,null,null,null,null,"СЭ",null,null,null,"3 кв.","3 кв."]
[null,"Дмитровское",null,"Текущие ремонтные и эксплуатационные расходы",null,"Гидроизоляция цокольной части здания (периметр)","новая работа","Гарантийные обязательства. Восстановление защитного покрытия цоколя.",null,null,240000,240000,null,null,null,"Борщев С.А.","белый",null,null,null,null,null,"СЭ",null,null,null,"2 кв.","3 кв."]
[null,"Дмитровское",null,"Текущие ремонтные и эксплуатационные расходы",null,"Ремонт кровли здания магазина","новая работа","Гарантийные обязательства. Провалы утеплителя, протечки",null,null,240000,240000,null,null,null,"Борщев С.А.","желтый",null,null,null,null,null,"СЭ",null,null,null,"1 кв.","4 кв."]
[null,"Дмитровское",null,"Текущие ремонтные и эксплуатационные расходы",null,"Ремонт узлов обвязки воздушного отопления.","новая работа","Гарантийные обязательства. Устранение течей узлов обвязки здания магазина.",null,null,180000,180000,null,null,null,"Борщев С.А.","желтый",null,null,null,null,null,"СЭ",null,null,null,"2 кв.","3 кв."]
[null,"Дмитровское",null,"Текущие ремонтные и эксплуатационные расходы",null,"Ремонт ограждения периметра земельного участка.","новая работа","Гарантийные обязательства. Бетонирование стоек заборных секций. (столбы падают)",null,null,240000,240000,null,null,null,"Борщев С.А.","белый",null,null,null,null,null,"СЭ",null,null,null,"2 кв.","3 кв."]
[null,"Дмитровское",null,"Текущие ремонтные и эксплуатационные расходы",null,"Покраска ограждения (забора) периметра земельного участка (вдоль Дмитровскоего ш.)","новая работа","Очистка, покраска, 600 п.м.",null,null,450000,450000,null,null,null,"Борщев С.А.","белый",null,null,null,null,null,"СЭ",null,null,null,"2 кв.","3 кв."]
[null,"Дмитровское",null,"Текущие ремонтные и эксплуатационные расходы",null,"Устройство теплоизоляции труб отопления на отопительных приборах.","новая работа","Гарантийные обязательства. Тепловентиляторы здания магазина.",null,null,96000,{"$f":"K46","v":96000},null,null,null,"Борщев С.А.","белый",null,null,null,null,null,"СЭ",null,null,null,"1 кв.","1 кв."]
[null,"Дмитровское",null,"Текущие ремонтные и эксплуатационные расходы",null,"Монтаж запорной арматуры перед воздухоотводчиками на узлах обвязки.","новая работа","Гарантийные обязательства. Узлы обвязки венткамер.",null,null,60000,{"$f":"K47","v":60000},null,null,null,"Борщев С.А.","желтый",null,null,null,null,null,"СЭ",null,null,null,"2 кв.","3 кв."]
[null,"Дмитровское",null,"Текущие ремонтные и эксплуатационные расходы",null,"Восстановление антикоррозийного покрытия металлокаркаса труб котельной.","новая работа","Гарантийные обязательства. Зачистка, окраска краскопультом, с демонтажом панелей обшивки.",null,null,480000,480000,null,null,null,"Борщев С.А.","желтый",null,null,null,null,null,"СЭ",null,null,null,"2 кв.","2 кв."]
[null,"Дмитровское",null,"Текущие ремонтные и эксплуатационные расходы",null,"Перенос оголовки дымовых труб котельной выше ограждения.","новая работа","Гарантийные обязательства. Нарастить трубы котельной.",null,null,180000,180000,null,null,null,"Борщев С.А.","желтый",null,null,null,null,null,"СЭ",null,null,null,"2 кв.","2 кв."]
[null,"Дмитровское",null,"Текущие ремонтные и эксплуатационные расходы",null,"Замена уличных эл. щитов (ЩУНО). 4 шт.","новая работа","Гарантийные обязательства. Нарушена герметизация. Пластиковые, сломались",null,null,180000,180000,null,null,null,"Борщев С.А.","желтый",null,null,null,null,null,"СЭ",null,null,null,"2 кв.","2 кв."]
[null,"Дмитровское",null,"Капитальные строительные работы, в т.ч. Материалы",null,"Монтаж бетонной разгрузочной площадки лестницы уличного ангара.","новая работа","Замечание комиссии при весеннем осмотре. Ангар склада №1.",null,null,120000,120000,null,null,null,"Борщев С.А.","желтый",null,null,null,null,null,"СЭ",null,null,null,"2 кв.","3 кв."]
[null,"Дмитровское",null,"Капитальные строительные работы, в т.ч. Материалы",null,"Проект энергоэффективности объекта  - датчики света, датчики реле","перенос","2 часть реализации проекта по энергоэф на все СТЦ ЦФО",null,null,1200000,1200000,null,null,null,"Борщев С.А.","желтый",null,null,null,null,null,"СЭ"]
[null,"Дмитровское",null,"Капитальные строительные работы, в т.ч. Материалы",null,"Диспетчеризация АПС (добавление БКИ на пост Охраны для информирования и реагирования ЧОП).","новая работа","Требования ПБ",null,null,100000,100000,null,null,null,"Борщев С.А.","желтый",null,null,null,null,null,"СЭ",null,null,null,"1 кв.","2 кв. "]
[null,"Н.Рижское ",null,"Текущие ремонтные и эксплуатационные расходы",null,"Ремонт асфальтобетонного покрытия","новая работа","Латочный ремонт",null,null,13000000,7000000,3000000,3000000,null,"Борщев С.А.","белый",null,null,null,null,null,"СЭ",null,null,null,"2 кв.","3 кв."]
[null,"Н.Рижское ",null,"Текущие ремонтные и эксплуатационные расходы",null,"Ремонт оснований колон ангаров ","новая работа","Демонтаж, бетонирование, монтаж защитного уголка, сварочные работы (остатки)",null,null,396000,{"$f":"K55","v":396000},null,null,null,"Борщев С.А.","белый",null,null,null,null,null,"СЭ",null,null,null,"2 кв.","2 кв."]
[null,"Н.Рижское ",null,"Текущие ремонтные и эксплуатационные расходы",null,"Ремонт водостока ангаров","новая работа","Монтаж/демонтаж, замена",null,null,210000,{"$f":"K56","v":210000},null,null,null,"Борщев С.А.","белый",null,null,null,null,null,"СЭ",null,null,null,"2 кв.","2 кв."]
[null,"Н.Рижское ",null,"Текущие ремонтные и эксплуатационные расходы",null,"Ремонт рекламных конструкций ","новая работа","Замена светодиодных модулей букв., ламп",null,null,150000,150000,null,null,null,"Борщев С.А.","белый",null,null,null,null,null,"СЭ",null,null,null,"1 кв.","4 кв."]
[null,"Н.Рижское ",null,"Капитальные строительные работы, в т.ч. Материалы",null,"Устройство металлических лестниц на кровлю склада ","новая работа","Для эксплуатации кровли по образцу СТЦ \"Индустриальный\" для ТО ливневой чистки снега, грязи, клапана дымоудаления, светильники.",null,null,1200000,1200000,null,null,null,"Борщев С.А.","красный",null,null,null,null,null,"СЭ","Технокомплекс",null,null,"2 кв.","3 кв."]
[null,"Н.Рижское ",null,"Текущие ремонтные и эксплуатационные расходы",null,"Устройство молниезащиты вентиляционных коробов аккумуляторной над крышей склада","новая работа","поставка, молниезащиты СМР",null,null,300000,300000,null,null,null,"Борщев С.А.","красный",null,null,null,null,null,"СЭ",null,null,null,"2 кв.","2 кв."]
[null,"Н.Рижское ",null,"Капитальные строительные работы, в т.ч. Материалы",null,"Проектирование ЖБ плит консольных стеллажей ","новая работа","Проектирование, стеллажи стоят на емкости ЛОС",null,null,200000,200000,null,null,null,"Борщев С.А.","красный",null,null,null,null,null,"СЭ",null,null,null,"1 кв.","2 кв."]
[null,"Н.Рижское ",null,"Капитальные строительные работы, в т.ч. Материалы",null,"Устройство бетонных оснований консольные стеллажи 4 шт. (15 стелажей) ","новая работа","Нарушена геометрия, угроза падения товара, особенно (в межсезонье), после проектирования выше)",null,null,3600000,3600000,null,null,null,"Борщев С.А.","красный",null,null,null,null,null,"СЭ",null,null,null,"2 кв.","2 кв."]
[null,"Н.Рижское ",null,"Текущие ремонтные и эксплуатационные расходы",null,"Замена кронштейнов на светильников по периметру здания,  на оцинкованные (около 60 шт.)","новая работа","Замечание ВО, СМР ",null,null,600000,600000,null,null,null,"Борщев С.А.","белый",null,null,null,null,null,"СЭ",null,null,null,"2 кв.","2 кв."]
[null,"Н.Рижское ",null,"Текущие ремонтные и эксплуатационные расходы",null,"Замена фильтров-осушителей и дозаправка фреоном системы охлаждения","новая работа","В соответствии с требованиями производителя раз в пять лет",null,null,370000,370000,null,null,null,"Борщев С.А.","желтый",null,null,null,null,null,"СЭ",null,null,null,"2 кв.","2 кв."]
[null,"Н.Рижское ",null,"Текущие ремонтные и эксплуатационные расходы",null,"Замена прожекторов улич. освещения","новая работа","СМР",null,null,960000,960000,null,null,null,"Борщев С.А.","желтый",null,null,null,null,null,"СЭ",null,null,null,"1 кв.","4 кв."]
[null,"Н.Рижское ",null,"Текущие ремонтные и эксплуатационные расходы",null,"Замена светильников магазина и склада","новая работа","Если не согласуют сверхб в 22, СМР",null,null,7000000,7000000,null,null,null,"Борщев С.А.","желтый",null,null,null,null,null,"СЭ",null,null,null,"1 кв.","4 кв."]
[null,"Н.Рижское ",null,"Текущие ремонтные и эксплуатационные расходы",null,"Устройство отлива  СКУИ","новая работа",null,null,null,396000,396000,null,null,null,"Борщев С.А.","желтый",null,null,null,null,null,"СЭ",null,null,null,"2 кв.","3 кв."]
[null,"Н.Рижское ",null,"Текущие ремонтные и эксплуатационные расходы",null,"Покраска лестниц магазина, лестниц и ограждений второго этажа СКУИ.   ","новая работа",null,null,null,960000,960000,null,null,null,"Борщев С.А.","белый",null,null,null,null,null,"СЭ",null,null,null,"2 кв.","3 кв."]
[null,"Н.Рижское ",null,"Приобретение произ-го, торг-го и складского оборудования",null,"Капитальный ремонт СКУИ (1 шт), замена ЦСП, Брус, профлист, задняя стенка","новая работа","Всего 3 шт. ПРОГ. 23,24,25 по одному в год",null,null,10800000,3600000,3600000,3600000,null,"Борщев С.А.","белый",null,null,null,null,null,"СЭ",null,null,null,"2 кв.","3 кв."]
[null,"Н.Рижское ",null,"Текущие ремонтные и эксплуатационные расходы",null,"Замена профлистов Ангаров ","новая работа","замятия",null,null,360000,{"$f":"K69","v":360000},null,null,null,"Борщев С.А.","белый",null,null,null,null,null,"СЭ",null,null,null,"3 кв.","3 кв."]
[null,"Н.Рижское ",null,"Текущие ремонтные и эксплуатационные расходы",null,"Автоматизация систем освещения СКУИ, Ангаров, Складов.","новая работа","датчики движения, света,реле времени",null,null,500000,{"$f":"K70","v":500000},null,null,null,"Борщев С.А.","белый",null,null,null,null,null,"СЭ",null,null,null,"2 кв.","2 кв."]
[null,"Н.Рижское ",null,"Текущие ремонтные и эксплуатационные расходы",null,"Ремонт ИТП здания (замена насосов) по результатам балансировки и калибровки отопления","новая работа","СМР",null,null,400000,400000,null,null,null,"Борщев С.А.","желтый",null,null,null,null,null,"СЭ",null,null,null,"2 кв.","2 кв."]
[null,"Н.Рижское ",null,"Текущие ремонтные и эксплуатационные расходы",null,"Замена теплообменника ИТП \"Склад\"","новая работа","Сильная коррозия в местах фланцевого соединения ",null,null,528000,528000,null,null,null,"Борщев С.А.","желтый",null,null,null,null,null,"СЭ",null,null,null,"3 кв.","3 кв."]
[null,"Н.Рижское ",null,"Текущие ремонтные и эксплуатационные расходы",null,"Присоединение стеллажей с линиями освещения к системе повторного заземления (Магазин)","новая работа","Замечание ВО, СМР ",null,null,528000,528000,null,null,null,"Борщев С.А.","желтый",null,null,null,null,null,"СЭ",null,null,null,"3 кв.","3 кв."]
[null,"Н.Рижское ",null,"Текущие ремонтные и эксплуатационные расходы",null,"Электротехническая лаборатория сети электроснабжения и изготовление однолинейных схем","новая работа","ПРОГ. На три года, склад магазин, улица",null,null,900000,300000,300000,300000,null,"Борщев С.А.","желтый",null,null,null,null,null,"СЭ",null,null,null,"3 кв.","3 кв."]
[null,"Н.Рижское ",null,"Текущие ремонтные и эксплуатационные расходы",null,"Установка датчиков движения (включение освещения в мезонинах, ангарах и высокостеллажных складах)","новая работа",null,null,null,1650000,{"$f":"K75","v":1650000},null,null,null,"Борщев С.А.","красный",null,null,null,null,null,"СЭ","Петрович",null,null,"3 кв.","3 кв."]
[null,"Н.Рижское ",null,"Текущие ремонтные и эксплуатационные расходы",null,"Теплоизоляция трубопроводов тепловых сетей и установка воздух отводчиков (тепловентиляторы склада)","новая работа","Замечание ВО, СМР ",null,null,336000,{"$f":"K76","v":336000},null,null,null,"Борщев С.А.","белый",null,null,null,null,null,"СЭ",null,null,null,"2 кв.","2 кв."]
[null,"Н.Рижское ",null,"Приобретение произ-го, торг-го и складского оборудования",null,"Диспетчеризация систем отопления, вентиляции и кондиционирования","новая работа","Замечание ВО, СМР , системы диспетчеризации  нет",null,null,960000,960000,null,null,null,"Борщев С.А.","белый",null,null,null,null,null,"СЭ",null,null,null,"1 кв.","4 кв."]
[null,"Н.Рижское ",null,"Капитальные строительные работы, в т.ч. Материалы",null,"Выполнить молниизащиту склада","новая работа","Замечание ПБ, Проектирование, СМР ",null,null,1000000,1000000,null,null,null,"Борщев С.А.","желтый ",null,null,null,null,null,"СЭ",null,null,null,"2 кв.","3 кв."]
[null,"Н.Рижское ",null,"Текущие ремонтные и эксплуатационные расходы",null,"Устройство огнезащиты, кровля, огнезащита вокруг дымоудаления","новая работа","Замечание ПБ, СМР, отсутствуют огнезащита вокруг дымоудаления",null,null,200000,200000,null,null,null,"Борщев С.А.","желтый",null,null,null,null,null,"СЭ",null,null,null,"3 кв. ","4 кв."]
[null,"Н.Рижское ",null,"Капитальные строительные работы, в т.ч. Материалы",null,"Устройство противопожарной стены между СТЦ и \"Балтия\" длина 135 м.п. высота 6 м","новая работа","Замечание ПБ, проектирование  и СМР , Требование специальных технических условий",null,null,20000000,20000000,null,null,null,"Борщев С.А.","желтый",null,null,null,null,null,"СЭ",null,null,null,"2 кв.","2 кв."]
[null,"Н.Рижское ",null,"Текущие ремонтные и эксплуатационные расходы",null,"Монтаж воздухоотводчиков на верхних точках трубопроводов и вулканов.","новая работа","Замечание ВО, СМР ",null,null,80000,80000,null,null,null,"Борщев С.А.","белый ",null,null,null,null,null,"СЭ",null,null,null,"2 кв.","3 кв."]
[null,"Н.Рижское ",null,"Текущие ремонтные и эксплуатационные расходы",null,"Теплоизоляция фасонной арматуры трубопровода в ИТП (2 шт. - Склад, АБК)","новая работа","Замечание ВО, СМР ",null,null,300000,300000,null,null,null,"Борщев С.А.","белый",null,null,null,null,null,"СЭ",null,null,null,"2 кв.","2 кв."]
[null,"Н.Рижское",null,"Капитальные строительные работы, в т.ч. Материалы",null,"Вагон-бытовки оборудовать автоматическими (автономными) установками пожаротушения","новая работа","Требование специальных технических условий",null,null,150000,150000,null,null,null,"Борщев С.А.",null,null,null,null,null,null,"СЭ",null,null,null,"1 кв.","1 кв. "]
[null,"Н.Рижское",null,"Капитальные строительные работы, в т.ч. Материалы",null,"Сооружения, строения (СКУИ, ангары, навесы) оборудовать:\n- автоматической пожарной сигнализацией адресного типа с дублированием сигнала на пульт подразделения пожарной охраны;\n- системой оповещения и управления эвакуацией людей при пожаре  3-го типа. \n","новая работа","Требование специальных технических условий, сигнализация аналоговая, необходима адресная",null,null,7500000,{"$f":"K84","v":7500000},null,null,null,"Борщев С.А.",null,null,null,null,null,null,"СЭ",null,null,null,"2 кв.","4 кв."]
[null,"Н.Рижское",null,"Капитальные строительные работы, в т.ч. Материалы",null,"Диспетчеризация АПС","новая работа","Требования ПБ",null,null,550000,{"$f":"K85","v":550000},null,null,null,"Борщев С.А.",null,null,null,null,null,null,"СЭ",null,null,null,"1 кв.","2 кв. "]
[null,"Новорязанское",null,"Текущие ремонтные и эксплуатационные расходы",null,"Ремонт асфальта.","новая работа",null,null,null,2500000,2500000,null,null,null,"Борщев С.А.","белый",null,null,null,null,null,"СЭ",null,null,null,"2 кв.","3 кв."]
[null,"Новорязанское",null,"Текущие ремонтные и эксплуатационные расходы",null,"Ремонт оснований колон ангаров ","новая работа","ПРОГ. Демонтаж, бетонирование, монтаж защитного уголка, сварочные работы",null,null,700000,400000,300000,null,null,"Борщев С.А.","белый",null,null,null,null,null,"СЭ",null,null,null,"2 кв.","2 кв."]
[null,"Новорязанское",null,"Текущие ремонтные и эксплуатационные расходы",null,"Ремонт водостока ангаров","новая работа","Монтаж/демонтаж, замена",null,null,220000,{"$f":"K88","v":220000},null,null,null,"Борщев С.А.","белый",null,null,null,null,null,"СЭ",null,null,null,"2 кв.","2 кв."]
[null,"Новорязанское",null,"Текущие ремонтные и эксплуатационные расходы",null,"Замена прожекторов улич. Освещения","новая работа","СМР",null,null,250000,{"$f":"K89","v":250000},null,null,null,"Борщев С.А.","белый ",null,null,null,null,null,"СЭ",null,null,null,"1 кв.","4 кв."]
[null,"Новорязанское",null,"Текущие ремонтные и эксплуатационные расходы",null,"Замена светильников магазина и склада","новая работа","СМР",null,null,495000,495000,null,null,null,"Борщев С.А.","белый ",null,null,null,null,null,"СЭ",null,null,null,"1 кв.","4 кв."]
[null,"Новорязанское",null,"Текущие ремонтные и эксплуатационные расходы",null,"Замена кронштейнов на светильников по периметру здания,  на оцинкованные","новая работа","Замечание ВО, СМР ",null,null,500000,500000,null,null,null,"Борщев С.А.","белый ",null,null,null,null,null,"СЭ",null,null,null,"2 кв.","3 кв."]
[null,"Новорязанское",null,"Текущие ремонтные и эксплуатационные расходы",null,"Замена фильтров-осушителей и дозаправка фреоном системы охлаждения","новая работа","В соответствии с требованиями производителя, один раз в пять лет",null,null,370000,370000,null,null,null,"Борщев С.А.","белый ",null,null,null,null,null,"СЭ",null,null,null,"2 кв.","2 кв."]
[null,"Новорязанское",null,"Капитальные строительные работы, в т.ч. Материалы",null,"Устройство металлических лестниц ( в том числе проектирование) на кровлю склада ","новая работа","Для эксплуатации кровли по образку СТЦ \"Индустриальный\" для ТО ливневой чистки снега, грязи, клапана дым удаления, светильники.",null,null,1200000,1200000,null,null,null,"Борщев С.А.","красный",null,null,null,null,null,"СЭ","Онтарио",null,null,"2 кв.","3 кв."]
[null,"Новорязанское",null,"Текущие ремонтные и эксплуатационные расходы",null,"Устройство молниезащиты вентиляционных коробов аккумуляторной над крышей склада","новая работа","поставка, молниезащиты СМР",null,null,300000,300000,null,null,null,"Борщев С.А.","желтый",null,null,null,null,null,"СЭ",null,null,null,"2 кв.","2 кв."]
[null,"Новорязанское",null,"Капитальные строительные работы, в т.ч. Материалы",null,"Автоматизация, вентиляции, АПС, Электроснабжения ","новая работа","поставка,  СМР",null,null,1500000,1500000,null,null,null,"Борщев С.А.","красный",null,null,null,null,null,"СЭ",null,null,null,"2 кв.","3 кв."]
[null,"Новорязанское",null,"Текущие ремонтные и эксплуатационные расходы",null,"Замена уличных эл. Щитов ","новая работа","ПРОГ. Коррозия нарушение герметичности, всего 20 гт. по 10 в год",null,null,800000,400000,400000,null,null,"Борщев С.А.","красный",null,null,null,null,null,"СЭ",null,null,null,"2 кв.","3 кв."]
[null,"Новорязанское",null,"Капитальные строительные работы, в т.ч. Материалы",null,"Освещение новой стоянки.","новая работа","Прокладка трасс установка опор ",null,null,1500000,{"$f":"K97","v":1500000},null,null,null,"Борщев С.А.","красный",null,null,null,null,null,"СЭ","Онтарио",null,null,"2 кв.","3 кв."]
[null,"Новорязанское",null,"Текущие ремонтные и эксплуатационные расходы",null,"Покраска металлических конструкций КСКУИ  ","новая работа","Очистка,покраска, выборочно",null,null,600000,{"$f":"K98","v":600000},null,null,null,"Борщев С.А.","белый ",null,null,null,null,null,"СЭ",null,null,null,"2 кв.","3 кв."]
[null,"Новорязанское",null,"Капитальные строительные работы, в т.ч. Материалы",null,"Переустройство входа противопожарной насосной станции.","новая работа","Замечание ПБ, Проектирование  (устройство отдельного входа, бетон, усиление)",null,null,1500000,1500000,null,null,null,"Борщев С.А.","желтый",null,null,null,null,null,"СЭ","Онтарио",null,null,"1 кв.","4 кв."]
[null,"Новорязанское",null,"Текущие ремонтные и эксплуатационные расходы",null,"Установка отливов на фундамент КСКУИ со стороны внешнего ограждения.","новая работа","Замечание ВО, СМР ",null,null,300000,300000,null,null,null,"Борщев С.А.","белый ",null,null,null,null,null,"СЭ",null,null,null,"2 кв.","2 кв."]
[null,"Новорязанское",null,"Текущие ремонтные и эксплуатационные расходы",null,"Восстановить огнезащиту в проеме между теплым и холодным складом.","новая работа","Замечание ПБ, СМР, высотные работы ",null,null,500000,500000,null,null,null,"Борщев С.А.","желтый ",null,null,null,null,null,"СЭ",null,null,null,"2 кв.","3 кв."]
[null,"Новорязанское",null,"Текущие ремонтные и эксплуатационные расходы",null,"Установить КИП в узлах обвязки в тепло пунктах.","новая работа","Замечание ВО, СМР ",null,null,75000,75000,null,null,null,"Борщев С.А.","белый ",null,null,null,null,null,"СЭ",null,null,null,"1 кв.","2 кв."]
[null,"Новорязанское",null,"Текущие ремонтные и эксплуатационные расходы",null,"Устройство системы повторного заземления для стеллажей и системы их освещения.","новая работа","Замечание ВО, СМР ",null,null,384000,384000,null,null,null,"Борщев С.А.","белый ",null,null,null,null,null,"СЭ",null,null,null,"2 кв.","3 кв."]
[null,"Новорязанское",null,"Текущие ремонтные и эксплуатационные расходы",null,"Монтаж воздухоотводчиков на верхних точках трубопроводов и вулканов.","новая работа","Замечание ВО, СМР ",null,null,80000,80000,null,null,null,"Борщев С.А.","белый ",null,null,null,null,null,"СЭ",null,null,null,"2 кв.","3 кв."]
[null,"Новорязанское",null,"Текущие ремонтные и эксплуатационные расходы",null,"Выполнить молниизащиту зданий.","новая работа","Замечание ПБ, Проектирование, СМР ",null,null,1000000,1000000,null,null,null,"Борщев С.А.","желтый ",null,null,null,null,null,"СЭ",null,null,null,"2 кв.","3 кв."]
[null,"Новорязанское",null,"Текущие ремонтные и эксплуатационные расходы",null,"Подключение мезонина с линиями освещения и патерностеры к системе повторного заземления.","новая работа","Замечание ВО, СМР ",null,null,150000,150000,null,null,null,"Борщев С.А.","белый ",null,null,null,null,null,"СЭ",null,null,null,"1 кв.","2 кв."]
[null,"Новорязанское",null,"Текущие ремонтные и эксплуатационные расходы",null,"Устройство теплоизоляция шлам сборников и другой арматуры, с температурой выше 45 градусов С","новая работа","Замечание ВО, СМР ",null,null,120000,120000,null,null,null,"Борщев С.А.","белый ",null,null,null,null,null,"СЭ",null,null,null,"2 кв.","3 кв."]
[null,"Новорязанское",null,"Текущие ремонтные и эксплуатационные расходы",null,"Перенос тепловых завес на теплом складе ближе друг к другу.","новая работа","Замечание ВО, СМР ",null,null,150000,150000,null,null,null,"Борщев С.А.","белый ",null,null,null,null,null,"СЭ",null,null,null,"2 кв.","3 кв."]
[null,"Новорязанское",null,"Проектно-изыскательские работы, получение ТУ",null,"Обследование электроустановок с редактированием эл. схем","новая работа","Замечание ВО, СМР ",null,null,200000,200000,null,null,null,"Борщев С.А.","желтый ",null,null,null,null,null,"СЭ",null,null,null,"1 кв.","4 кв."]
[null,"Новорязанское",null,"Приобретение произ-го, торг-го и складского оборудования",null,"Установить устройство (тепловая завеса)  отсечения теплого воздуха между теплым и холодным складом.","новая работа","Замечание ВО, СМР ",null,null,750000,750000,null,null,null,"Борщев С.А.","белый ",null,null,null,null,null,"СЭ",null,null,null,"2 кв.","3 кв."]
[null,"Новорязанское",null,"Текущие ремонтные и эксплуатационные расходы",null,"Устройство ограждающей конструкции для щитов управления ЛНС.","новая работа","Замечание ВО, СМР ",null,null,80000,80000,null,null,null,"Борщев С.А.","белый ",null,null,null,null,null,"СЭ",null,null,null,"2 кв.","2 кв."]
[null,"Новорязанское",null,"Приобретение произ-го, торг-го и складского оборудования",null,"Замена тепловых завес на входной группе на более мощные 4шт.","новая работа","Замечание ВО, СМР ",null,null,350000,350000,null,null,null,"Борщев С.А.","белый ",null,null,null,null,null,"СЭ",null,null,null,"2 кв.","3 кв."]
[null,"Новорязанское",null,"Текущие ремонтные и эксплуатационные расходы",null,"Замена кронштейнов на светильников по периметру здания,  на оцинкованные","новая работа","Замечание ВО, СМР ",null,null,600000,600000,null,null,null,"Борщев С.А.",null,null,null,null,null,null,"СЭ",null,null,null,"2 кв.","3 кв."]
[null,"Новорязанское",null,"Текущие ремонтные и эксплуатационные расходы",null," устройства для открывания окон, расположить не выше 1,7 м от уровня площадки лестничной клетки. (ЛК в АБК)","новая работа","Замечание ПБ, СМР",null,null,80000,80000,null,null,null,"Борщев С.А.","желтый",null,null,null,null,null,"СЭ",null,null,null,"2 кв.","3 кв."]
[null,"Новорязанское",null,"Текущие ремонтные и эксплуатационные расходы",null,"Энергосбережение ангаров, СКУИ и навесов.(установка датчиков движения, фото реле).","новая работа","СМР, энергосбережение",null,null,200000,200000,null,null,null,"Борщев С.А.","белый ",null,null,null,null,null,"СЭ",null,null,null,"2 кв.","3 кв."]
[null,"Новорязанское",null,"Капитальные строительные работы, в т.ч. Материалы",null,"408 Модернизация ИТП после подк. Газ. Котельной","перенос","СМР, ПНР","бюджет 2022 240 000",null,240000,240000,null,null,null,"Борщев С.А.","красный",null,null,null,null,null,"СЭ","Онтарио",null,null,"1 кв.","4 кв."]
[null,"Новорязанское",null,"Приобретение произ-го, торг-го и складского оборудования",null,"409 ЗиП Котельной после запуска ???","перенос",null,"бюджет 2022 180 000",null,180000,180000,null,null,null,"Борщев С.А.","красный",null,null,null,null,null,"СЭ",null,null,null,"1 кв.","4 кв."]
[null,"Новорязанское",null,"Проектно-изыскательские работы, получение ТУ",null,"395 Проектирование модернизация системы ливневой канализации","перенос","В том числе получение разрешений и согласований","бюджет 2022 1 800 000",null,1800000,1800000,null,null,null,"Борщев С.А.","красный",null,null,null,null,null,"СЭ",null,null,null,"1 кв.","4 кв."]
[null,"Новорязанское",null,"Капитальные строительные работы, в т.ч. Материалы",null,"397 Устройство доп. Накопительной емкости ЛОС","перенос","Земляные работы,бетонные работы","бюджет 2022 4 200 000",null,4200000,4200000,null,null,null,"Борщев С.А.","красный",null,null,null,null,null,"СЭ",null,null,null,"1 кв.","4 кв."]
[null,"Новорязанское",null,"Капитальные строительные работы, в т.ч. Материалы",null,"398 Устройство напорной КНС, трасса ливневой канализации до точки сброса","перенос","Земляные работы,бетонные работы, прокол под трасой, траса по СНТ, точка сброса","бюджет 2022 24 000 000",null,24000000,24000000,null,null,null,"Борщев С.А.","красный",null,null,null,null,null,"СЭ",null,null,null,"1 кв.","4 кв."]
[null,"Новорязанское",null,"Приобретение произ-го, торг-го и складского оборудования",null,"Диспетчеризация систем отопления, вентиляции и кондиционирования","новая работа","Замечание ВО, СМР ",null,null,960000,960000,null,null,null,"Борщев С.А.",null,null,null,null,null,null,"СЭ",null,null,null,"4 кв.","4 кв."]
[null,"Новорязанское",null,"Текущие ремонтные и эксплуатационные расходы",null,"Капитальный ремонт участка 700 кв.м. кровли здания склада, с заменой утеплителя ","новая работа","СМР, замечание ВО",null,null,3000000,3000000,null,null,null,"Борщев С.А.","белый ",null,null,null,null,null,"СЭ",null,null,null,"2 кв.","2 кв."]
[null,"Новорязанское",null,"Капитальные строительные работы, в т.ч. Материалы",null,"Вагон-бытовки оборудовать автоматическими (автономными) установками пожаротушения","новая работа","Требование специальных технических условий",null,null,150000,150000,null,null,null,"Борщев С.А.",null,null,null,null,null,null,"СЭ",null,null,null,"1 кв.","1 кв. "]
[null,"Новорязанское",null,"Капитальные строительные работы, в т.ч. Материалы",null,"Сооружения, строения (СКУИ, ангары, навесы) оборудовать:\n- автоматической пожарной сигнализацией адресного типа с дублированием сигнала на пульт подразделения пожарной охраны;\n- системой оповещения и управления эвакуацией людей при пожаре  3-го типа. \n","новая работа","Требование специальных технических условий, сигнализация аналоговая, необходима адресная",null,null,7500000,7500000,null,null,null,"Борщев С.А.",null,null,null,null,null,null,"СЭ",null,null,null,"2 кв.","4 кв."]
[null,"Новорязанское",null,"Капитальные строительные работы, в т.ч. Материалы",null,"Диспетчеризация АПС","новая работа","Требования ПБ",null,null,550000,550000,null,null,null,"Борщев С.А.",null,null,null,null,null,null,"СЭ",null,null,null,"1 кв.","2 кв. "]
[null,"Симферопольское",null,"Текущие ремонтные и эксплуатационные расходы",null,"Ремонт асфальта.","новая работа",null,null,null,2200000,2200000,null,null,null,"Борщев С.А.","белый",null,null,null,null,null,"СЭ",null,null,null,"2 кв.","2 кв."]
[null,"Симферопольское",null,"Текущие ремонтные и эксплуатационные расходы",null,"Ремонт оснований колон ангаров ","новая работа","ПРОГ. Демонтаж, бетонирование, монтаж защитного уголка, сварочные работы",null,null,600000,300000,300000,null,null,"Борщев С.А.","белый",null,null,null,null,null,"СЭ",null,null,null,"2 кв.","2 кв."]
[null,"Симферопольское",null,"Текущие ремонтные и эксплуатационные расходы",null,"Ремонт водостока ангаров","новая работа","Монтаж/демонтаж, замена",null,null,220000,{"$f":"K128","v":220000},null,null,null,"Борщев С.А.","белый",null,null,null,null,null,"СЭ",null,null,null,"2 кв.","2 кв."]
[null,"Симферопольское",null,"Текущие ремонтные и эксплуатационные расходы",null,"Замена прожекторов улич. Освещения","новая работа","СМР",null,null,250000,{"$f":"K129","v":250000},null,null,null,"Борщев С.А.","белый ",null,null,null,null,null,"СЭ",null,null,null,"1 кв.","4 кв."]
[null,"Симферопольское",null,"Текущие ремонтные и эксплуатационные расходы",null,"Замена светильников магазина и склада","новая работа","СМР",null,null,495000,495000,null,null,null,"Борщев С.А.","белый ",null,null,null,null,null,"СЭ",null,null,null,"1 кв.","4 кв."]
[null,"Симферопольское",null,"Текущие ремонтные и эксплуатационные расходы",null,"Замена кронштейнов на светильников по периметру здания,  на оцинкованные","новая работа","Замечание ВО, СМР ",null,null,600000,600000,null,null,null,"Борщев С.А.","белый",null,null,null,null,null,"СЭ",null,null,null,"2 кв.","2 кв."]
[null,"Симферопольское",null,"Текущие ремонтные и эксплуатационные расходы",null,"Покраска пожарных лестниц  на здании СТЦ","новая работа","покраска пожарных лестниц  на здании  СТЦ",null,null,600000,600000,null,null,null,"Борщев С.А.","белый",null,null,null,null,null,"СЭ",null,null,null,"2 кв.","3 кв."]
[null,"Симферопольское",null,"Текущие ремонтные и эксплуатационные расходы",null," Устройства для открывания окон, расположить не выше 1,7 м от уровня площадки лестничной клетки. (ЛК в АБК)","новая работа","Замечание ПБ, СМР",null,null,80000,80000,null,null,null,"Борщев С.А.","желтый",null,null,null,null,null,"СЭ",null,null,null,"2 кв.","3 кв."]
[null,"Симферопольское",null,"Текущие ремонтные и эксплуатационные расходы",null,"Замена противопожарной двери в аккумуляторную","новая работа","Замечание ПБ, СМР",null,null,70500,70500,null,null,null,"Борщев С.А.","желтый",null,null,null,null,null,"СЭ",null,null,null,"2 кв.","3 кв."]
[null,"Симферопольское",null,"Текущие ремонтные и эксплуатационные расходы",null,"Ремонт парапетов кровли","новая работа","Замечание ВО, СМР ",null,null,240000,240000,null,null,null,"Борщев С.А.","желтый",null,null,null,null,null,"СЭ",null,null,null,"2 кв.","2 кв."]
[null,"Симферопольское",null,"Текущие ремонтные и эксплуатационные расходы",null,"Устройстов датчиков освещенности уличных сооружений ","новая работа","СМР",null,null,300000,300000,null,null,null,"Борщев С.А.","белый",null,null,null,null,null,"СЭ",null,null,null,"3 кв.","3 кв."]
[null,"Симферопольское",null,"Капитальные строительные работы, в т.ч. Материалы",null,"Устройство габионов в районе плиты СКУИ","новая работа","Скорее всего откажемся весной 23 Сваи винтовые, земляные работы, габионы",null,null,3600000,3600000,null,null,null,"Борщев С.А.","белый ",null,null,null,null,null,"СЭ",null,null,null,"3 кв.","3 кв."]
[null,"Симферопольское",null,"Проектно-изыскательские работы, получение ТУ",null,"492 Проектирование Модернизации ЛОС","перенос",null,"бюджет 2022 480 000",null,480000,480000,null,null,null,"Борщев С.А.","желтый",null,null,null,null,null,"СЭ",null,null,null,"1 кв.","4 кв."]
[null,"Симферопольское",null,"Капитальные строительные работы, в т.ч. Материалы",null,"493 Модернизация ЛОС","перенос","Начало модернизации ","бюджет 2022 7 200 000",null,7200000,7200000,null,null,null,"Борщев С.А.","желтый",null,null,null,null,null,"СЭ",null,null,null,"1 кв.","4 кв."]
[null,"Симферопольское",null,"Капитальные строительные работы, в т.ч. Материалы",null,"Проект энергоэффективности объекта  - датчики света, датчики реле","перенос","2 часть реализации проекта по энергоэф на все СТЦ ЦФО",null,null,1200000,1200000,null,null,null,"Борщев С.А.","красный",null,null,null,null,null,"СЭ",null,null,null,"1 кв.","4 кв."]
[null,"Симферопольское",null,"Капитальные строительные работы, в т.ч. Материалы",null,"Диспетчеризация АПС","новая работа","Требования ПБ",null,null,100000,100000,null,null,null,"Борщев С.А.","желтый",null,null,null,null,null,"СЭ",null,null,null,"2 кв.","2 кв. "]
[null,"Тверь",null,"Текущие ремонтные и эксплуатационные расходы",null,"Окраскв двух маршевых пожарных лестниц на складах №7;8;9","новая работа","Текущий ремонт",null,null,275000,275000,null,null,null,"Борщев С.А.",null,null,null,null,null,null,"СЭ",null,null,null,"2 кв.","4 кв."]
[null,"Тверь",null,"Текущие ремонтные и эксплуатационные расходы",null,"Окраска наружных пожарных лестниц на АБК, склады №3;4","новая работа","Текущий ремонт",null,null,265000,265000,null,null,null,"Борщев С.А.",null,null,null,null,null,null,"СЭ",null,null,null,"2 кв.","4 кв."]
[null,"Тверь",null,"Текущие ремонтные и эксплуатационные расходы",null,"Ангар с тб Алтуфьево обработать пол (фанера) на втором этаже противопожарной пропиткой","новая работа","Требование ПБ",null,null,372000,372000,null,null,null,"Борщев С.А.",null,null,null,null,null,null,"СЭ",null,null,null,"2 кв.","4 кв."]
[null,"Тверь",null,"Текущие ремонтные и эксплуатационные расходы",null,"Окраска каркасов баннера ПЕТРОВИЧ на крыше здания торгового центра (2 каркаса)","новая работа","Текущий ремонт",null,null,{"$f":"67000*2","v":134000},134000,null,null,null,"Борщев С.А.",null,null,null,null,null,null,"СЭ",null,null,null,"2 кв.","4 кв."]
[null,"Тверь",null,"Текущие ремонтные и эксплуатационные расходы",null,"Покраска ограждения и погрузочных ворот-качелий на эксплуатируемой кровле склада №9","новая работа","Текущий ремонт",null,null,128000,128000,null,null,null,"Борщев С.А.",null,null,null,null,null,null,"СЭ",null,null,null,"2 кв.","4 кв."]
[null,"Тверь",null,"Текущие ремонтные и эксплуатационные расходы",null,"Ремонт трубопроводов ливневых стоков на складах №2;3;4;6;7","новая работа","Текущий ежегодный ремонт",null,null,102000,102000,null,null,null,"Борщев С.А.",null,null,null,null,null,null,"СЭ",null,null,null,"2 кв.","3 кв."]
[null,"Тверь",null,"Текущие ремонтные и эксплуатационные расходы",null,"Бурение скважины рядом с наземными пожарными емкомстями (для заполнения, промывки)  700 м.куб.???","новая работа","нужна отдельная скважина для пожарных резервуаров",null,null,600000,600000,null,null,null,"Борщев С.А.",null,null,null,null,null,null,"СЭ",null,null,null,"2 кв.","4 кв."]
[null,"Тверь",null,"Текущие ремонтные и эксплуатационные расходы",null,"Ремонт, окраска цоколей здания АБК и Торгового центра","новая работа","Поддержание облика",null,null,207000,207000,null,null,null,"Борщев С.А.",null,null,null,null,null,null,"СЭ",null,null,null,"2 кв.","3 кв."]
[null,"Тверь",null,"Текущие ремонтные и эксплуатационные расходы",null,"Дозаправка всех кондиционеров фреоном (20 шт), предвесенняя и предзимняя подготовка ","новая работа",null,null,null,138000,138000,null,null,null,"Борщев С.А.",null,null,null,null,null,null,"СЭ",null,null,null,"2 кв.","4 кв."]
[null,"Тверь",null,"Текущие ремонтные и эксплуатационные расходы",null,"Ремонт брусчатки перед АБК","новая работа","Текущий ремонт",null,null,36000,36000,null,null,null,"Борщев С.А.",null,null,null,null,null,null,"СЭ",null,null,null,"2 кв.","3 кв."]
[null,"Тверь",null,"Текущие ремонтные и эксплуатационные расходы",null,"Установить в торговом зале Торгового центра табло \"стрелка аврийной навигации\" (22 шт), установить табло \"выхода нет\" (1 шт)","новая работа","Требование ПБ",null,null,546800,546800,null,null,null,"Борщев С.А.",null,null,null,null,null,null,"СЭ",null,null,null,"2 кв.","4 кв."]
[null,"Тверь",null,"Капитальные строительные работы, в т.ч. Материалы",null,"Оборудовать СКУИ, ангары, навесы, вагон-бытовки, блок-контейнеры типа «Север» пожарной сигнализацией адресного типа.","новая работа","Требование специальных технических условий, сигнализация аналоговая, необходима адресная",null,null,5500000,5500000,null,null,null,"Борщев С.А.","желтый",null,null,null,null,null,"СЭ",null,null,null,"2 кв.","4 кв."]
[null,"Тверь",null,"Капитальные строительные работы, в т.ч. Материалы",null,"Оборудовать блок-контейнеры типа «Север» установками модульного пожаротушения.","новая работа","Требование специальных технических условий",null,null,100000,100000,null,null,null,"Борщев С.А.","желтый",null,null,null,null,null,"СЭ",null,null,null,"1 кв.","1 кв. "]
[null,"Тверь",null,"Приобретение произ-го, торг-го и складского оборудования",null,"Установка пожарных щитов РЦ 4 шт.","новая работа","Требования ПБ",null,null,200000,200000,null,null,null,"Борщев С.А.","желтый",null,null,null,null,null,"СЭ",null,null,null,"1 кв.","4 кв."]
[null,"Тверь",null,"Текущие ремонтные и эксплуатационные расходы",null,"Устройство горизонтальной входной площадка с шириной не менее 1,5 ширины полотна наружной двери пожарного выхода (2 выхода).","новая работа","Перед наружной дверью (эвакуационные выходы из ТЗ) отсутствует горизонтальная входная площадка с шириной не менее 1,5 ширины полотна наружной двери.\n(ТВР.018)\n п. 4.2.21 СП 1.13130.2020.\n(выполнить устройство площадок) \n","ПБ",null,180000,180000,null,null,null,"Борщев С.А.",null,null,null,null,null,null,"СЭ","Петрович",null,null,"1 кв.","4 кв."]
[null,"Выборг",null,"Текущие ремонтные и эксплуатационные расходы","10.2","Замена старых емкостей ГСМ на новые","новая работа","Обеспечению охраны труда, удоства эксплуатации (промывки) ","Демонтаж кровельного покрытия\nдемонтаж емкостей через кровлю\nМонтаж емкостей\nПуско-наладочные работы",null,250000,250000,null,null,null,"Колясев В.Г.",null,null,null,"СЗФО",null,null,"СЭ",null,null,null,"2 квартал","3 квартал"]
[null,"Гатчина",null,"Текущие ремонтные и эксплуатационные расходы","4.2","Устройство аварийного освещения в КО и ТЗ","новая работа","Охрана труда, безопасность","Монтаж сети аварийного освещения\nМонтаж светильников аварийного освещения",null,300000,300000,null,null,null,"Колясев В.Г.",null,null,null,"СЗФО",null,null,"СЭ",null,null,null,"2 квартал","3 квартал"]
[null,"Индустриальный","ИНД.112; ИНД.113","Текущие ремонтные и эксплуатационные расходы","4.2","Заменить силовые щиты на складах  ИНД.112, ИНД.113.","новая работа","Безопасность.\nЕстественный износ оборудования","Демонтаж морально устаревшего оборудования\nМонтаж нового оборудования",null,300000,300000,null,null,null,"Колясев В.Г.",null,null,null,"СЗФО",null,null,"СЭ",null,null,null,"2 квартал","3 квартал"]
[null,"Индустриальный","ИНД.112; ИНД.113","Текущие ремонтные и эксплуатационные расходы","4.2","Замена светильников наружного освещения ИНД.112, ИНД.113 ","новая работа","Безопасность.\nЕстественный износ оборудования.\nЭкономия на работах связанных с периодической заменой светильников ","Демонтаж неисправных и устаревших светильников\nМонтаж новых светильников\nУстановлены светильники неизвестного производителя, необходима замена, т.к. частично начали выходить из строя светодиоды, около 60 светильников.",null,500000,500000,null,null,null,"Колясев В.Г.",null,null,null,"СЗФО",null,null,"СЭ",null,null,null,"2 квартал","3 квартал"]
[null,"Кингисепп",null,"Текущие ремонтные и эксплуатационные расходы","11.2","ЩВ1 и ЩВ2 замена автоматизации ","новая работа","Естественный износ оборудования. \nОбрудование выполнено на базе контролера сегнэтикс (СПб). Монтаж, ПНР систем.",null,null,630000,630000,null,null,null,"Колясев В.Г.",null,null,null,"СЗФО",null,null,"СЭ",null,null,null,"2 квартал","3 квартал"]
[null,"Кингисепп",null,"Текущие ремонтные и эксплуатационные расходы","12.1","Устройство системы вентиляции в кабинете УБ","новая работа","Улучшение условий труда. Монтаж, потавка бризера.",null,null,190000,190000,null,null,null,"Колясев В.Г.",null,null,null,"СЗФО",null,null,"СЭ",null,null,null,"1 квартал","2 квартал"]
[null,"Кингисепп",null,"Приобретение произ-го, торг-го и складского оборудования","12.1","Устройство резервного кондиционера в серверной с блоком ротации.","новая работа","Безопасность серверного оборудования. \nМонтаж, поставка оборудования. Часть работ выполнить в 2022, оставшиеся работы выполнить в 2023 в связи с удорожанием после выполнения проектных работ.",null,null,153000,153000,null,null,null,"Колясев В.Г.",null,null,null,"СЗФО",null,null,"СЭ",null,null,null,"1 квартал","3 квартал"]
[null,"Кингисепп",null,"Приобретение произ-го, торг-го и складского оборудования","12.1","Установить вентиляцию в здании: двухэтажное модульное здание. - доработка техрешения","новая работа","По результатам ВО. Проектирование, поставка оборудования, монтаж.",null,null,500000,500000,null,null,null,"Колясев В.Г.",null,null,null,"СЗФО",null,null,"СЭ",null,null,null,"3 квартал","4 квартал"]
[null,"Кингисепп",null,"Приобретение произ-го, торг-го и складского оборудования","12.1","Организация системы вентиляции ЛКМ (требование отдела охраны труда)","новая работа","Проектирование, поставка оборудования, монтаж.",null,null,1800000,1800000,null,null,null,"Колясев В.Г.",null,null,null,"СЗФО",null,null,"СЭ",null,null,null,"2 квартал","3 квартал"]
[null,"Луга",null,"Текущие ремонтные и эксплуатационные расходы",null,"Замена ВРУ магазина ","новая работа","(увеличена нагрузка на ВРУ требуется его замена)..",null,null,300000,300000,null,null,null,"Колясев В.Г.",null,null,null,"СЗФО",null,null,"СЭ",null,null,null,"1 квартал","2 квартал"]
[null,"Славянка",null,"Проектно-изыскательские работы, получение ТУ","7.1","Обследование электроустановки","новая работа","Аудит электроустановки с целью обновления проектной документации.",null,null,250000,250000,null,null,null,"Колясев В.Г.",null,null,null,"СЗФО",null,null,"СЭ",null,null,null,"1 квартал","2 квартал"]
[null,"Славянка",null,"Текущие ремонтные и эксплуатационные расходы","4.2","Ремонт освещения на складе МСЛ.059: замена кабельных линий","новая работа",", замена люминисцентных светильников на светодиодные (25 светильников).",null,null,250000,250000,null,null,null,"Колясев В.Г.",null,null,null,"СЗФО",null,null,"СЭ",null,null,null,"1 квартал","2 квартал"]
[null,"Славянка",null,"Текущие ремонтные и эксплуатационные расходы","4.2","Монтаж системы АВР ДГУ.","новая работа","автоматическое резервирование электроснабжения",null,null,400000,400000,null,null,null,"Колясев В.Г.",null,null,null,"СЗФО",null,null,"СЭ",null,null,null,"2 квартал","3 квартал"]
[null,"Мурманская",null,"Текущие ремонтные и эксплуатационные расходы",null,"Ремонт КНС системы ЛК базы","новая работа","Замена насосного оборудованиия,напорного трубопровода и его фасонной арматуры.",null,null,550000,550000,null,null,null,"Колясев В.Г.",null,null,null,"СЗФО",null,null,"СЭ",null,null,null,"2 квартал","3 квартал"]
[null,"Мурманская 2",null,"Приобретение произ-го, торг-го и складского оборудования","12.1","Замена 3 сплит-систем серверной","новая работа","Демонтаж, монтаж, поставка оборудования. Не вошло в реконсттрукцию","Не вошло в реконструкцию",null,1200000,1200000,null,null,null,"Колясев В.Г.",null,null,null,"СЗФО",null,null,"СЭ",null,null,null,"1 квартал","2 квартал"]
[null,"Парнас",null,"Текущие ремонтные и эксплуатационные расходы",null,"ремонт кабеленесущих конструкций, замена щита освещения на кровле АБК.","новая работа","приведене в порядок кабелей, укладка в коробы",null,null,450000,450000,null,null,null,"Колясев В.Г.",null,null,null,"СЗФО",null,null,"СЭ",null,null,null,"1 квартал","2 квартал"]
[null,"Парнас",null,"Текущие ремонтные и эксплуатационные расходы",null,"Ремонт ограждения КНС ливневой и хоз. бытовой канализации","новая работа","Демонтаж существующего ограждения, устройство нового, заливка фундаментов под новые столбы, устройство калитки.",null,null,200000,200000,null,null,null,"Колясев В.Г.",null,null,null,"СЗФО",null,null,"СЭ",null,null,null,"2 квартал","2 квартал"]
[null,"Парнас",null,"Текущие ремонтные и эксплуатационные расходы",null,"Вынесение 9 наружных блоков (кондиционирование встройки в ТЗ) с подпотолочного пространства на кровлю","новая работа","Перекладка фреонопровода с добавлением маслосъемных петель. Монтаж кровельной проходки. Обустройство площадки под монтаж наружных блоков к имеющимся металлическим площадкам холодилодильных систем.",null,null,480000,480000,null,null,null,"Колясев В.Г.",null,null,null,"СЗФО",null,null,"СЭ",null,null,null,"1 квартал","2 квартал"]
[null,"Парнас",null,"Приобретение произ-го, торг-го и складского оборудования",null,"Замена 1 сплит системы коммерческого отдела","новая работа","Демонтаж, монтаж, закупка оборудования.",null,null,210000,210000,null,null,null,"Колясев В.Г.",null,null,null,"СЗФО",null,null,"СЭ",null,null,null,"2 квартал","2 квартал"]
[null,"Парнас",null,"Текущие ремонтные и эксплуатационные расходы",null,"Монтаж наружной решетки системы ПВ6 (встройка торгового зала)","новая работа","Разбор, вырезание отверстия 600*350 под монтаж наружной воздухозаборной решетки в цвет фасада.",null,null,180000,180000,null,null,null,"Колясев В.Г.",null,null,null,"СЗФО",null,null,"СЭ",null,null,null,"3 квартал","3 квартал"]
[null,"Парнас",null,"Текущие ремонтные и эксплуатационные расходы",null,"Вынос контроллеров ПВ 7,8 (встройка ТЗ)","новая работа","Отсутствие доступа к управлению системами",null,"СЭ",260000,260000,null,null,null,"Колясев В.Г.",null,null,null,"СЗФО",null,null,"СЭ",null,null,null,"3 квартал","4 квартал"]
[null,"Парнас",null,"Текущие ремонтные и эксплуатационные расходы",null,"ПВ 3 (вент.камера АБК) замена автоматики ","новая работа","Износ системы автоматики (замена контроллера, датчиков, кабельной линия)",null,"СЭ",350000,350000,null,null,null,"Колясев В.Г.",null,null,null,"СЗФО",null,null,"СЭ",null,null,null,"3 квартал","4 квартал"]
[null,"Планерная",null,"Проектно-изыскательские работы, получение ТУ","7.1","Разработка исполнительной документации по системам вентиляции и кондиционирования","новая работа","Изыскательские и проектные работы. Отсутствует документация","Изыскательские и проектные работы. Отсутствует документация",null,350000,350000,null,null,null,"Колясев В.Г.",null,null,null,"СЗФО",null,null,"СЭ",null,null,null,"2 квартал","3 квартал"]
[null,"Полевая Сабировская 49",null,"Текущие ремонтные и эксплуатационные расходы","12.2","Восстановить работоспособность системы дымоудаления 3-4 этажа (  4 этажная часть)","новая работа","Система не работоспособная. Расчет противодымной вентиляции после перелланировки помещений, монтажные работы",null,null,1500000,1500000,null,null,null,"Колясев В.Г.",null,null,null,"СЗФО",null,null,"СЭ",null,null,null,"3 квартал","4 квартал"]
[null,"Полевая Сабировская 49",null,"Проектно-изыскательские работы, получение ТУ","7.1","Разработка исполнительгной документации по системам вентиляции и кондиционирования","новая работа","Изыскательские и проектные работы. Отсутствует документация",null,null,350000,350000,null,null,null,"Колясев В.Г.",null,null,null,"СЗФО",null,null,"СЭ",null,null,null,"2 квартал","3 квартал"]
[null,"Полевая Сабировская 49",null,"Текущие ремонтные и эксплуатационные расходы","12.2","Прокладка центрального вытяжного воздуховода для подключения бытовых кондиционеров. 4 этаж","новая работа","Пожелание Прохорова Монтажные работы для пожключеня бытовых кондиционеров",null,null,120000,120000,null,null,null,"Колясев В.Г.",null,null,null,"СЗФО",null,null,"СЭ",null,null,null,"1 квартал","2 квартал"]
[null,"Славянка",null,"Текущие ремонтные и эксплуатационные расходы","2.2","Замена промежуточной бетонной опоры на силовую опору  ОГС-9 (на парковке у въездных ворот).","новая работа","существующую в аварийном состоянии",null,null,250000,250000,null,null,null,"Колясев В.Г.",null,null,null,"СЗФО",null,null,"СЭ",null,null,null,"1 квартал","2 квартал"]
[null,"Славянка",null,"Приобретение произ-го, торг-го и складского оборудования","12.1","Замена сплит системы в оптовом отделе","новая работа","Монтаж, поставка оборудования.",null,null,120000,120000,null,null,null,"Колясев В.Г.",null,null,null,"СЗФО",null,null,"СЭ",null,null,null,"1 квартал","2 квартал"]
[null,"Софийская",null,"Текущие ремонтные и эксплуатационные расходы","4.2","Замена светильников в торговом зале (80 шт.) \nLedel l-trade-II.","новая работа","существующие не исправны.",null,null,1100000,1100000,null,null,null,"Колясев В.Г.",null,null,null,"СЗФО",null,null,"СЭ",null,null,null,"1 квартал","3 квартал"]
[null,"Софийская",null,"Текущие ремонтные и эксплуатационные расходы","4.2","установка ИБП на эвакуационное освещение основное здание.","новая работа","ИБП нет, не работает эвакуационное  освещение",null,null,500000,500000,null,null,null,"Колясев В.Г.",null,null,null,"СЗФО",null,null,"СЭ",null,null,null,"1 квартал","3 квартал"]
[null,"Софийская",null,"Калькулятор_Приобретение программного обеспечения и прав пользования","8.1","Закупка ПО МПС софт MSRT4D-1K-E, МПС софт MPS-Netkey (сетевой ключ защиты)","новая работа","Закупка програмного обеспечение для перевода системы диспетчерезации с версии 3 на версию 4.","Внешние закупки",null,221400,221400,null,null,null,"Колясев В.Г.",null,null,null,"СЗФО",null,null,"СЭ",null,null,null,"2 квартал","2 квартал"]
[null,"Таллинское-2 ",null,"Проектно-изыскательские работы, получение ТУ","7.1","Обследование электроустановки","новая работа","Аудит электроустановки с целью обновления проектной документации.",null,null,200000,200000,null,null,null,"Колясев В.Г.",null,null,null,"СЗФО",null,null,"СЭ",null,null,null,"1 квартал","2 квартал"]
[null,"Таллинское-2 ",null,"Калькулятор_Приобретение программного обеспечения и прав пользования","8.1","Закупка ПО МПС софт MSRT4D-1K-E, МПС софт MPS-Netkey (сетевой ключ защиты)","новая работа","Закупка програмного обеспечение для перевода системы диспетчерезации с версии 3 на версию 4.","Внешние закупки",null,221400,221400,null,null,null,"Колясев В.Г.",null,null,null,"СЗФО",null,null,"СЭ",null,null,null,"1 квартал","1 квартал"]
[null,"Таллинское-2 ",null,"Текущие ремонтные и эксплуатационные расходы","2.2","Ремонт колодца КНС№1","новая работа","Заменить плиту перекрытия колодца КНС№1, на плиту с двумя крышками( Для удобства демонтажа и обслуживания канализационного измельчителя).",null,null,200000,200000,null,null,null,"Колясев В.Г.",null,null,null,"СЗФО",null,null,"СЭ",null,null,null,"1 квартал","2 квартал"]
[null,"Таллинское-2 ",null,"Приобретение произ-го, торг-го и складского оборудования","12.1","Замена сплит систем на двух КПП","новая работа","Монтаж, поставка оборудования.",null,null,180000,180000,null,null,null,"Колясев В.Г.",null,null,null,"СЗФО",null,null,"СЭ",null,null,null,"1 квартал","2 квартал"]
[null,"Таллинское-2 ",null,"Приобретение произ-го, торг-го и складского оборудования","12.1","Перенос с 2021 Система вентиляции помещения зарядной (гараж). ","перенос","Монтаж, поставка оборудования. Часть работ выполнить в 2022, оставшиеся работы выполнить в 2023 в связи с удорожанием после выполнения проектных работ.","бюджет 2022 600 000",null,3800000,3800000,null,null,null,"Колясев В.Г.",null,null,null,"СЗФО",null,null,"СЭ",null,null,null,"2 квартал","3 квартал"]
[null,"Таллинское-2 ",null,"Проектно-изыскательские работы, получение ТУ","7.1","Разработка и согласование проекта парковки","новая работа","Не приостановка, но штраф ГАТИ",null,null,708000,{"$f":"K193","v":708000},null,null,null,"Дурандина Ю.Л.",null,null,null,null,null,null,"СЭ",null,null,null,"2 квартал","4 квартал"]
[null,"Таллинское-2 ",null,"Проектно-изыскательские работы, получение ТУ","7.1","Разработка проекта и согласование схемы ОДД .","новая работа","Не приостановка, но штраф ГАТИ",null,null,531000,531000,null,null,null,"Дурандина Ю.Л.",null,null,null,null,null,null,"СЭ",null,null,null,"2 квартал","4 квартал"]
[null,"Планерная",null,"Проектно-изыскательские работы, получение ТУ","7.1","Разработка и согласование проекта парковки","новая работа","Не приостановка, но штраф ГАТИ","Не приостановка, но штраф ГАТИ",null,708000,708000,null,null,null,"Дурандина Ю.Л.",null,null,null,null,null,null,"СЭ","Лорио",null,null,"2 квартал","4 квартал"]
[null,"Планерная",null,"Проектно-изыскательские работы, получение ТУ","7.1","Разработка проекта и согласование схемы ОДД .","новая работа","Не приостановка, но штраф ГАТИ","Не приостановка, но штраф ГАТИ",null,531000,531000,null,null,null,"Дурандина Ю.Л.",null,null,null,null,null,null,"СЭ","Лорио",null,null,"2 квартал","4 квартал"]
[null,"Индустриальный",null,"Проектно-изыскательские работы, получение ТУ","7.1","Разработка и согласование проекта парковки","новая работа","Не приостановка, но штраф ГАТИ","Разработка проекта парковки\nСогласование проекта парковки в гос.структурах",null,708000,708000,null,null,null,null,null,null,null,null,null,null,"СЭ","Технокомплекс",null,null,"2 квартал","4 квартал"]
[null,"Софийская",null,"Проектно-изыскательские работы, получение ТУ","7.1","проект размещения контейнерной площадки ТБО","новая работа","Не приостановка, но штраф ГАТИ",null,null,590000,590000,null,null,null,"Дурандина Ю.Л.",null,null,null,null,null,null,"СЭ","Лорио",null,null,"2 квартал","4 квартал"]
[null,"Софийская",null,"Проектно-изыскательские работы, получение ТУ","7.1","Разработка и согласование проекта парковки","новая работа","Не приостановка, но штраф ГАТИ",null,null,708000,708000,null,null,null,"Дурандина Ю.Л.",null,null,null,null,null,null,"СЭ","Лорио",null,null,"2 квартал","4 квартал"]
[null,"КАД Север",null,"Проектно-изыскательские работы, получение ТУ","7.1","Разработка проекта и согласование схемы ОДД .","новая работа","Не приостановка, но штраф ГАТИ",null,null,531000,531000,null,null,null,"Дурандина Ю.Л.",null,null,null,null,null,null,"СЭ","Онтарио",null,null,"2 квартал","4 квартал"]
[null,"Служба эксплуатации",null,"Проектно-изыскательские работы, получение ТУ",null,"Согласование реклам и вывесок","новая работа","планириуем ежегодно, возможно перенести в Текущую деятельность",null,null,650000,650000,null,null,null,"Дурандина Ю.Л.",null,null,null,null,null,null,"СЭ",null,null,null,"1 квартал","4 квартал"]
[null,"КАД Север",null,"Текущие ремонтные и эксплуатационные расходы","11.2","Двери эвакуационных выходов ангаров оборудовать системой антипаника.","новая работа","Требование СТУ ИВ-180-993 от 24.03.2022 г.",null,null,120000,120000,null,null,null,"Лукьянов Н.И.","красный",null,null,null,null,null,"СЭ",null,null,null,"2 кв.","3 кв"]
[null,"Гатчина",null,"Капитальные строительные работы, в т.ч. Материалы","9.1","Выполнить СМР СПС и СОУЭ первых этажей складов ГАТ.О.018, ГАТ. О.019, ГАТ.О.020, ГАТ.О.021","новая работа","Требование нормативных и правовых актов в области ПБ","Работа по проектированию всех складов проведена в 2022 г., СМР ГАТ.О 022 выполняется так же в 2022 г.",null,1200000,1200000,null,null,null,"Лукьянов Н.И.","красный",null,null,null,null,null,"СЭ",null,null,null,"2 кв.","4 кв."]
[null,"Мурманская 2",null,"Проектно-изыскательские работы, получение ТУ","7.1","Разработать раздел Мероприятия по обеспечению пожарной безопасности","новая работа","Требование нормативных и правовых актов в области ПБ, В связи с ремонтом (реконструкцией) СТЦ произошло изменение систем и установок противопожарной защиты не соответствующее ранее разработанному  Разделу  Мероприятия по обеспечению пожарной безопасности ","Не вошло в реконструкцию",null,410000,410000,null,null,null,"Лукьянов Н.И.","красный",null,null,null,null,null,"СЭ",null,null,null,"2 кв.","3 кв."]
[null,"Мурманская 2",null,"Текущие ремонтные и эксплуатационные расходы","9.2","У люков дымоудаления выполнить защиту кровли негорючими материалами от края выбросного отверстия на расстояние не менее 2 метров","новая работа","Требование нормативных и правовых актов в области ПБ","Не вошло в реконструкцию",null,140000,140000,null,null,null,"Лукьянов Н.И.","красный ",null,null,null,null,null,"СЭ",null,null,null,"2 кв.","3 кв."]
[null,"Мурманская 2",null,"Текущие ремонтные и эксплуатационные расходы","3.2","Выполнить сплошной проход к лестничным клеткам и наружным лестницам через плоские кровли из материалов НГ, шириной не менее 0.7 метра  в основнос здании","новая работа","Требование нормативных и правовых актов в области ПБ","Не вошло в реконструкцию",null,2000000,2000000,null,null,null,"Лукьянов Н.И.","красный",null,null,null,null,null,"СЭ",null,null,null,"2 кв.","3 кв."]
[null,"Мурманская 2",null,"Текущие ремонтные и эксплуатационные расходы","3.2","Перевесить дверь, выходящую на лестничную клетку Л1, на уровне 2-го этажа, таким образом, чтобы он не сужала ширину лестничной площадки","новая работа","Требование нормативных и правовых актов в области ПБ","Не вошло в реконструкцию",null,60000,60000,null,null,null,"Лукьянов Н.И.","красный",null,null,null,null,null,"СЭ",null,null,null,"2 кв.","2 кв."]
[null,"Мурманская 2",null,"Текущие ремонтные и эксплуатационные расходы","3.2","Выполнить расширение эвакуационных выходов (провести замену дверных полотен) из помещений санузлов дверных проемов на ширину в сету не менее 0.6 метра (факт 0.54 м)","новая работа","Требование нормативных и правовых актов в области ПБ","Не вошло в реконструкцию",null,210000,210000,null,null,null,"Лукьянов Н.И.","зеленый до выявления надзорными органами",null,null,null,null,null,"СЭ",null,null,null,"3 кв.","4 кв."]
[null,"Мурманская 2",null,"Текущие ремонтные и эксплуатационные расходы","4.2","В лестничной клетке Л1 допущена открытая прокладка электрических проводов. Определить мероприятия с учетом назначения э/проводки ","новая работа","Требование нормативных и правовых актов в области ПБ","Не вошло в реконструкцию",null,120000,120000,null,null,null,"Лукьянов Н.И.","красный",null,null,null,null,null,"СЭ",null,null,null,"3 кв.","3 кв."]
[null,"Мурманская 2",null,"Проектно-изыскательские работы, получение ТУ","7.1","Разработать план тушения пожара и согласовать его в территориальном подразделении МЧС.","новая работа","Требование нормативных и правовых актов в области ПБ","Не вошло в реконструкцию",null,400000,400000,null,null,null,"Лукьянов Н.И.","желтый",null,null,null,null,null,"СЭ",null,null,null,"2 кв.","3 кв."]
[null,"Мурманская 2",null,"Текущие ремонтные и эксплуатационные расходы","9.2","Заменить кабельную линию системы пожарной сигнализации на огнестойкую кабельную линию (ОКЛ)","новая работа","Требование нормативных и правовых актов в области ПБ","Не вошло в реконструкцию",null,700000,700000,null,null,null,"Лукьянов Н.И.","красный",null,null,null,null,null,"СЭ",null,null,null,"1 кв.","3 кв."]
[null,"Таллинское-2 ",null,"Капитальные строительные работы, в т.ч. Материалы","9.1","Вагон-бытовки  оборудовать автоматическими (автономными) установками пожаротушения.","новая работа","Требование СТУ ИВ-130-41063 от 20.12.2021г.",null,null,350000,350000,null,null,null,"Лукьянов Н.И.","желтый",null,null,null,null,null,"СЭ",null,null,null,"1кв.","4 кв."]
[null,"Таллинское-2 ",null,"Капитальные строительные работы, в т.ч. Материалы","9.1","Сооружения, строения (СКУИ, ангары, навесы) оборудовать:\n- автоматической пожарной сигнализацией адресного типа с дублированием сигнала на пульт подразделения пожарной охраны;\n- системой оповещения и управления эвакуацией людей при пожаре  3-го типа. \n","новая работа","Требование СТУ ИВ-130-41063 от 20.12.2021г.",null,null,9200000,9200000,null,null,null,"Лукьянов Н.И.","желтый",null,null,null,null,null,"СЭ",null,null,null,"1кв.","4 кв."]
[null,"Таллинское-2 ",null,"Текущие ремонтные и эксплуатационные расходы","2.2","Произвести ремонт по гермитизации колодцев пожарных гидрантов -8шт.","новая работа","по результатам проверки","Колодцы затопляются грунтовыми водами, что может привести к их размораживанию в осенне-зимний период.",null,800000,800000,null,null,null,"Лукьянов Н.И.","красный",null,null,null,null,null,"СЭ",null,null,null,"2 кв.","4 кв."]
[null,"Таллинское-2 ",null,"Текущие ремонтные и эксплуатационные расходы","9.2","Плановая замена АКБ с остаточной ёмкостью менее 30% в количестве - 20 шт.","новая работа","по результатам проверки","Истек срок эксплуатации",null,150000,150000,null,null,null,"Лукьянов Н.И.","красный",null,null,null,null,null,"СЭ",null,null,null,"2 кв.","2 кв."]
[null,"Таллинское-2 ",null,"Капитальные строительные работы, в т.ч. Материалы","9.1","Устройство платы управления центрального пульта MCR 9705-16А для системы АПС","новая работа","Под расширение СПС на объекте  в связи со строительством на вновь выделенном участке",null,null,100000,100000,null,null,null,"Лукьянов Н.И.","красный",null,null,null,null,null,"СЭ",null,null,null,"1 кв.","2 кв."]
[null,"Индустриальный",null,"Текущие ремонтные и эксплуатационные расходы","9.2","Ремонт системы дымоудаления. ","новая работа","Пожарная безопасность, Охрана Труда\nТребование нормативных и правовых актов в области ПБ","Устройство платы управления модуля расширительного MCR R0448-4\nСистема дымоудаления систематически выходит из строя",null,90000,90000,null,null,null,"Лукьянов Н.И.","красный",null,null,null,null,null,"СЭ",null,null,null,"1 кв.","2 кв."]
[null,"Софийская",null,"Капитальные строительные работы, в т.ч. Материалы","3.2","Устройство противопожарной стены между АЗС ПТК и складскими сооружениями на территории СТЦ","новая работа","Требования Предписания  об устранении нарушений требований пожарной безопасности № 42-1-722/1/1 от 22.10.2021г.","Проектирование 2022 г., СМР 2023 г.",null,8000000,8000000,null,null,null,"Лукьянов Н.И.","красный",null,null,null,null,null,"СЭ",null,null,null,"1 кв.","3 кв."]
[null,"Софийская",null,"Текущие ремонтные и эксплуатационные расходы","9.2","Плановая замена АКБ с остаточной ёмкостью менее 30%: АКБ 12В 40Ач в количестве - 4 шт., АКБ 12В 17Ач в количестве - 18 шт., АКБ 12В 7Ач в количестве - 20 шт.","новая работа","Требование нормативных и правовых актов в области ПБ","Истек срок эксплуатации",null,150000,150000,null,null,null,"Лукьянов Н.И.","красный",null,null,null,null,null,"СЭ",null,null,null,"2 кв.","3 кв."]
[null,"Софийская",null,"Капитальные строительные работы, в т.ч. Материалы","3.2","Проектирование и СМР эвакуационных лестниц 3-го типа складов ЮЖН.050, ЮЖН. 049, ЮЖН.048","новая работа","Требования Предписания  об устранении нарушений требований пожарной безопасности № 42-1-722/1/1 от 22.10.2021г.",null,null,1200000,1200000,null,null,null,"Лукьянов Н.И.","красный",null,null,null,null,null,"СЭ",null,null,null,"2 кв.","3 кв."]
[null,"Парнас",null,"Проектно-изыскательские работы, получение ТУ",null,"Разработка СТУ на объекты уличной инфраструктуры","новая работа","Требование ФЗ-123","В связи с устройством склада мезонинного хранения на СКУИ, нормы проектирования на который отсутствуют.",null,1300000,1300000,null,null,null,"Лукьянов Н.И.","красный",null,null,null,null,null,"СЭ",null,null,null,"1 кв.","2 кв."]
[null,"Кингисепп",null,"Текущие ремонтные и эксплуатационные расходы","9.2","Двери эвакуационных выходов оборудовать системой антипаника","новая работа","Требование СТУ от 31.08.2022 г.",null,null,120000,120000,null,null,null,"Лукьянов Н.И.","красный",null,null,null,null,null,"СЭ",null,null,null,"1 кв.","4 кв."]
[null,"Кингисепп",null,"Проектно-изыскательские работы, получение ТУ","7.1","Разработать и согласовать в ГУ МЧС России по Ленинградской области план пожаротушения.","новая работа","Требование СТУ от 31.08.2022 г.",null,null,400000,400000,null,null,null,"Лукьянов Н.И.","красный",null,null,null,null,null,"СЭ",null,null,null,"1 кв.","4 кв."]
[null,"Кингисепп",null,"Капитальные строительные работы, в т.ч. Материалы","9.1","Вагон-бытовкиоборудовать автоматическими (автономными) установками пожаротушения.","новая работа","Требование СТУ от 31.08.2022 г.",null,null,300000,300000,null,null,null,"Лукьянов Н.И.","красный",null,null,null,null,null,"СЭ",null,null,null,"1 кв.","4 кв."]
[null,"Кингисепп",null,"Капитальные строительные работы, в т.ч. Материалы","9.1","Сооружения, строения (СКУИ, ангары, навесы) оборудовать:\n- автоматической пожарной сигнализацией адресного типа с дублированием сигнала на пульт подразделения пожарной охраны;\n- системой оповещения и управления эвакуацией людей при пожаре  3-го типа. \n","новая работа","Требование СТУ от 31.08.2022 г.",null,null,4800000,4800000,null,null,null,"Лукьянов Н.И.","красный",null,null,null,null,null,"СЭ",null,null,null,"1 кв.","4 кв."]
[null,"Выборг",null,"Приобретение произ-го, торг-го и складского оборудования","9.1","Установить противопожарную штору 2-го типа EI30 между ТЗ и помещением склада ","новая работа","Требование нормативных и правовых актов в области ПБ","В связи устройством помещения гардероба примыкающего к помещению торгового зала.",null,180000,180000,null,null,null,"Лукьянов Н.И.","красный",null,null,null,null,null,"СЭ",null,null,null,"2 кв.","3 кв."]
[null,"Выборг",null,"Проектно-изыскательские работы, получение ТУ","7.1","Разработать и согласовать в ГУ МЧС России по Ленинградской области план тушения пожара \n","новая работа","Требование СТУ ИВ-180-992 от 24.03.2022 г.",null,null,400000,400000,null,null,null,"Лукьянов Н.И.","красный",null,null,null,null,null,"СЭ",null,null,null,"1 кв.","4 кв."]
[null,"Выборг",null,"Текущие ремонтные и эксплуатационные расходы","9.2","Двери эвакуационных выходов ангаров оборуовать системой антипаника.","новая работа","Требование СТУ ИВ-180-992 от 24.03.2022 г.",null,null,120000,120000,null,null,null,"Лукьянов Н.И.","красный",null,null,null,null,null,"СЭ",null,null,null,"1 кв.","4 кв."]
[null,"Выборг",null,"Капитальные строительные работы, в т.ч. Материалы","9.1","Вагон-бытовки  оборудовать автоматическими (автономными) установками пожаротушения.","новая работа","Требование СТУ ИВ-180-992 от 24.03.2022 г.",null,null,300000,300000,null,null,null,"Лукьянов Н.И.","красный",null,null,null,null,null,"СЭ",null,null,null,"1 кв.","4 кв."]
[null,"Петрозаводск",null,"Капитальные строительные работы, в т.ч. Материалы","9.1","Систему СПС и СОУЭ в помещении склада ЛКМ (категории А) выполнить во взрывозащищенном исполнении.","новая работа","Требование нормативных и правовых актов в области ПБ","Работы планировались ранее но отклонялись УБ",null,320000,320000,null,null,null,"Лукьянов Н.И.","желтый",null,null,null,null,null,"СЭ",null,null,null,"3 кв.","3кв."]
[null,"Петрозаводск",null,"Текущие ремонтные и эксплуатационные расходы","9.2","Помещение ЛКМ (категория А) предусмотреть наружные легко  сбрасываемые ограждающие конструкции, необходимо выполнить замену существующих стеклопакетов на окна с одинарным остеклением.","новая работа","Требование нормативных и правовых актов в области ПБ","Работы планировались ранее но отклонялись УБ",null,120000,120000,null,null,null,"Лукьянов Н.И.","желтый",null,null,null,null,null,"СЭ",null,null,null,"2 кв.","3 кв."]
[null,"Новгород",null,"Приобретение произ-го, торг-го и складского оборудования","12.2","Территорию и сооружения оборудовать телевизионными камерами (системой видеонаблюдения) для визуального обнаружения загорания с выводом визуального сигнала на монитор, установленный в помещении с персоналом.","новая работа","Требование СТУ ИВ-183-4485 от 30.12.2021 г.","Для выполнения задачи необходима полная модернизация СОТ СТЦ",null,3000000,3000000,null,null,null,"Лукьянов Н.И.","красный",null,null,null,null,null,"СЭ",null,null,null,"1 кв.","4 кв."]
[null,"Новгород",null,"Капитальные строительные работы, в т.ч. Материалы","9.1","Оборудовать вагон-бытовки автономными установками пожаротушения.","новая работа","Требование СТУ ИВ-183-4485 от 30.12.2021 г.",null,null,40000,40000,null,null,null,"Лукьянов Н.И.","красный",null,null,null,null,null,"СЭ",null,null,null,"1 кв.","4 кв."]
[null,"Новгород",null,"Проектно-изыскательские работы, получение ТУ","7.1","Разработать план тушения пожара и согласовать его в территориальном подразделении МЧС.","новая работа","Требование СТУ ИВ-183-4485 от 30.12.2021 г.",null,null,400000,400000,null,null,null,"Лукьянов Н.И.","красный",null,null,null,null,null,"СЭ",null,null,null,"1 кв.","4 кв."]
[null,"Новгород",null,"Проектно-изыскательские работы, получение ТУ","7.1","Сооружения, строения (СКУИ, ангары, навесы) оборудовать:\n- автоматической пожарной сигнализацией адресного типа с дублированием сигнала на пульт подразделения пожарной охраны;\n- системой оповещения и управления эвакуацией людей при пожаре  3-го типа. \n","новая работа","Требование СТУ ИВ-183-4485 от 30.12.2021 г.",null,null,4800000,4800000,null,null,null,"Лукьянов Н.И.","красный",null,null,null,null,null,"СЭ",null,null,null,"1 кв.","4 кв."]
[null,"Н.Девяткино",null,"Капитальные строительные работы, в т.ч. Материалы","4.1","Устройство дополнительных распределительных эл.щитов","новая работа"," в рамках работ по присоединению дополнительных нагрузок (майнинг ферм)",null,null,400000,400000,null,null,null,"Казьмин А.П.",null,null,null,null,null,null,"СЭ","Онтврио"]
[null,"Н.Девяткино",null,"Текущие ремонтные и эксплуатационные расходы","2.2","Оргаждениие аварийных зданий и сооружений после пожаров. ","новая работа","1.  Часть здания имеет изменения геометрии несущих конструкций, частичное обрушение ж/б ограждающих конструкций, отсутствует кровля. К эксплуатации непригодно. Требует демонтажа. Ограждение здания сигнальными лентами.\n2. . ",null,null,100000,100000,null,null,null,"Казьмин А.П.",null,null,null,null,null,null,"СЭ","Онтврио"]
[null,"Н.Девяткино",null,"Текущие ремонтные и эксплуатационные расходы","2.2","Ремонт дорожного покрытия на территории (грунтовая дорога)","новая работа","Отсыпка щебнем образовавшихся неровностей. Поддержка состояния грунтовой дороги на территории.",null,null,300000,300000,null,null,null,"Казьмин А.П.",null,null,null,null,null,null,"СЭ","Онтврио"]
[null,"Н.Девяткино",null,"Капитальные строительные работы, в т.ч. Материалы","9.1","Проектирование и монтаж спс и соуэ","новая работа","В рамках ПБ и страхования зданий. Работы необходимы в случае страхования объекта",null,null,5000000,5000000,null,null,null,"Казьмин А.П.",null,null,null,null,null,null,"СЭ","Онтврио"]
[null,"Н.Девяткино",null,"Капитальные строительные работы, в т.ч. Материалы","4.1","Организация освещения наружного","новая работа","В рамках безопасности и охране участка от посягательств на частную собственность ","Объем данных работ определить дополнительным совещанием",null,400000,400000,null,null,null,"Казьмин А.П.",null,null,null,null,null,null,"СЭ","Онтврио"]
[null,"Планерная",null,"Приобретение произ-го, торг-го и складского оборудования","5.1","Замена Тепловых водяных завес на воротах теплого склада (САХ) №1/12 (3шт)","новая работа","в рамках уменьшения теплопотребления и в связи с износом оборудования ","согласно предложения  КП ООО Тепломаш",null,2300000,2300000,null,null,null,"Казьмин А.П.",null,null,null,null,null,null,"СЭ",null,null,null,"2023-05-20","2023-09-30"]
[null,"Планерная",null,"Приобретение произ-го, торг-го и складского оборудования","10.1","Резервирование водоснабжения, установка емкости и насосной группы ","новая работа","обеспечение бесперебойного водоснабжения СТЦ",null,null,250000,250000,null,null,null,"Казьмин А.П.",null,null,null,null,null,null,"СЭ"]
[null,"Планерная",null,"Проектно-изыскательские работы, получение ТУ","7.1","Обследование системы электроснабжения  СТЦ Планерная и уточнение ( редактировани)е с указанием конечных потребителей и разработка однолинейных схем","новая работа","в связи с необходимостью актуализации проектной и  исполнительной документации по СТЦ",null,null,380000,380000,null,null,null,"Казьмин А.П.",null,null,null,null,null,null,"СЭ",null,null,null,"2023-04-02","2023-10-30"]
[null,"Планерная",null,"Проектно-изыскательские работы, получение ТУ","7.1","Обследование системы ХВС и уточнение эксплуатационной схемы водоснабжения и пож. Водопровода (здание МФЦ (ОПТ001))","новая работа","в связи с необходимостью актуализации проектной и  исполнительной документации по СТЦ",null,null,380000,380000,null,null,null,"Казьмин А.П.",null,null,null,null,null,null,"СЭ",null,null,null,"2023-04-02","2023-10-30"]
[null,"Планерная",null,"Проектно-изыскательские работы, получение ТУ","7.1","Обследование и уточнение тепловой эксплуатационной Схемы в зданиях МФЦ и АБК","новая работа","в связи с необходимостью актуализации проектной и  исполнительной документации по СТЦ",null,null,380000,380000,null,null,null,"Казьмин А.П.",null,null,null,null,null,null,"СЭ",null,null,null,"2023-04-02","2023-10-30"]
[null,"Планерная",null,"Проектно-изыскательские работы, получение ТУ","7.1","Обследование и уточнение  эксплуатационной Схемы системы вентиляции  в зданиях МФЦ и АБК","новая работа","в связи с необходимостью актуализации проектной и  исполнительной документации по СТЦ",null,null,380000,380000,null,null,null,"Казьмин А.П.",null,null,null,null,null,null,"СЭ",null,null,null,"2023-04-02","2023-10-30"]
[null,"Планерная",null,"Проектно-изыскательские работы, получение ТУ","7.1","Обследование инженерных коммуникаций (ХВС, ГВС , Отопления в ИТП  на предмет выявления эл. потенциала ","новая работа","в связи  с повышенной коррозией и протечками труб после замены на новые ","Стоимость услуг Мегавольт",null,20000,20000,null,null,null,"Казьмин А.П.",null,null,null,null,null,null,"СЭ",null,null,null,"2023-04-02","2023-10-30"]
[null,"Планерная",null,"Текущие ремонтные и эксплуатационные расходы","4.2","Реализация рекомендаций после обследования на наличие эл. Потенциала( устройство шины ГЗШ или катодной защиты )","новая работа","Устройство повторного заземления реализация предложений по устранению выявленных недостатков","оценка является \"экспертной \"",null,400000,400000,null,null,null,"Казьмин А.П.",null,null,null,null,null,null,"СЭ",null,null,null,"2023-04-02","2023-10-30"]
[null,"Планерная",null,"Текущие ремонтные и эксплуатационные расходы","2.1","Ремонт асфальтобетоннного покрытия  и парковки СТЦ Планерная отдельными участками (с регулировкой уровня клодцев )на общей площади до 1220 кв м","новая работа","в связи с износом покрытия , а также в связи с повреждениями  в результате осенне зимнего  сезона 2022-2023г","на основании стоимости работ по ремонту от ДСК 15 (стоимость Кв м  -  2297  руб .",null,2800000,2800000,null,null,null,"Казьмин А.П.",null,null,null,null,null,null,"СЭ",null,null,null,"2023-06-01","2023-09-30"]
[null,"Планерная",null,"Текущие ремонтные и эксплуатационные расходы","3.2","5 Окраска металлических конструкций складов 2-5 ","перенос","В связи снеобходимостью увеличения бюджета для решения задачи, 11 лет базе","бюджет 2022 600 000 Стоимость работ по результатам тендера в 2022г 1800000 руб ",null,2000000,2000000,null,null,null,"Казьмин А.П.",null,null,null,null,null,null,"СЭ",null,null,null,"2023-06-01","2023-09-30"]
[null,"Планерная",null,"Текущие ремонтные и эксплуатационные расходы","3.2","Окраска Эвакуационной лестницы у здания МФЦ ","новая работа","в связи с наличием коррозии на мет. Конструкциях и площадках лестнцы ",null,null,400000,400000,null,null,null,"Казьмин А.П.",null,null,null,null,null,null,"СЭ",null,null,null,"2023-06-01","2023-09-30"]
[null,"Планерная",null,"Текущие ремонтные и эксплуатационные расходы","3.2","ремонт ( замена окрашенного профнастила ) ограждения арендованного участка общая длина участков до 50 пог. М.  ","новая работа","в связи с необходимостью замены поврежденных листов ограждения ",null,null,50000,50000,null,null,null,"Казьмин А.П.",null,null,null,null,null,null,"СЭ",null,null,null,"2023-06-01","2023-09-30"]
[null,"Планерная ",null,"Текущие ремонтные и эксплуатационные расходы","6.2","Ремонт общесплавной канализации у МФЦ со сторовны парковки для клиентов  главного входазамена участка трубы по результатам видеонаблюдения после промывки систем канализации в июне 2022 г в связи с образованием перегиба трубы ориентировочно из-за подмыва грунтовыми водами.","новая работа","Требуется замена участка трубы канализации д.300мм на длину не менее 1 м в связи с провисом трубы и накопллением воды в трубе ,(по результатам видеонаблюдения после промывки систем канализации в 2022)",null,null,700000,700000,null,null,null,"Казьмин А.П.",null,null,null,null,null,null,"СЭ",null,null,null,"2023-06-01","2023-09-30"]
[null,"Полевая Сабировская 49",null,"Приобретение произ-го, торг-го и складского оборудования","6.2","Резервирование водоснабжения, установка емкости и насосной группы ","новая работа","обеспечение бесперебойного водоснабжения СТЦ",null,null,250000,250000,null,null,null,"Казьмин А.П.",null,null,null,null,null,null,"СЭ","Стройсервис"]
[null,"Полевая Сабировская 49",null,"Проектно-изыскательские работы, получение ТУ","7.1","Обследование системы электроснабжения АВК Полевая Сабировская я и уточнение ( редактировани)е с указанием конечных потребителей и разработка однолинейных схем","новая работа","в связи с необходимостью актуализации проектной и  исполнительной документации по  АВК",null,null,380000,380000,null,null,null,"Казьмин А.П.",null,null,null,null,null,null,"СЭ","Стройсервис",null,null,"2023-04-02","2023-10-30"]
[null,"Полевая Сабировская 49",null,"Проектно-изыскательские работы, получение ТУ","7.1","Обследование системы ХВС и уточнение эксплуатационной схемы водоснабжения и пож. Водопровода АВК","новая работа","в связи с необходимостью актуализации проектной и  исполнительной документации по  АВК",null,null,380000,380000,null,null,null,"Казьмин А.П.",null,null,null,null,null,null,"СЭ","Стройсервис",null,null,"2023-04-02","2023-10-30"]
[null,"Полевая Сабировская 49",null,"Проектно-изыскательские работы, получение ТУ","7.1","Обследование и уточнение  эксплуатационной Схемы вентиляции в здании АВК ","новая работа","в связи с необходимостью актуализации проектной и  исполнительной документации по  АВК",null,null,380000,{"$f":"K257","v":380000},null,null,null,"Казьмин А.П.",null,null,null,null,null,null,"СЭ","Стройсервис",null,null,"2023-04-02","2023-10-30"]
[null,"Полевая Сабировская 49",null,"Проектно-изыскательские работы, получение ТУ","7.1","Обследование и уточнение тепловой эксплуатационной Схемы в здании АВК ","новая работа","в связи с необходимостью актуализации проектной и  исполнительной документации по  АВК",null,null,380000,380000,null,null,null,"Казьмин А.П.",null,null,null,null,null,null,"СЭ","Стройсервис",null,null,"2023-04-02","2023-10-30"]
[null,"Полевая Сабировская 49",null,"Текущие ремонтные и эксплуатационные расходы","3.2","881 Замена дверей входных групп в АВК 1-го этажа ( Гранмото, ИП Борзенко, ГЛ. вход в АВК )","перенос","в связи с удорожанием материалов и работ, высокий износ петель и полотна дверей , невозможнось замены в рамках ТО","бюджет 2022 250 000, цена на основании стоимости работполученных КП в 2022г",null,700000,700000,null,null,null,"Казьмин А.П.",null,null,null,null,null,null,"СЭ","Стройсервис",null,null,"2023-06-01","2023-09-30"]
[null,"Полевая Сабировская 49",null,"Текущие ремонтные и эксплуатационные расходы","3.2","Косметический ремонт АВК ","новая работа",null,null,null,1000000,1000000,null,null,null,"Казьмин А.П.",null,null,null,null,null,null,"СЭ","Стройсервис",null,null,"2023-06-01","2023-09-30"]
[null,"Полевая Сабировская 49",null,"Текущие ремонтные и эксплуатационные расходы","3.2","Окраска металлических конструкций шлагбаумов 5 единиц","новая работа","В связи с наличием  коррозии и повреждения окраски металлических частей",null,null,600000,600000,null,null,null,"Казьмин А.П.",null,null,null,null,null,null,"СЭ","Стройсервис",null,null,"2023-06-01","2023-09-30"]
[null,"Полевая Сабировская 49",null,"Капитальные строительные работы, в т.ч. Материалы","1.1","Замена  гидроизоляционного  слоя кровли для обеспечения гидроизоляционных свойств Кровли и частичной заменой утеплителя (на основании заключения ООО Технониколь)площадью 1200 кв м ","новая работа"," В связиснеобходимостью ремонта согласно заключения ООО Технониколь (ремонтировали 5-ти этажку, необходиму на основную часть","Согласно стомости СК Эксперт 5000 руб /кв.м ",null,6500000,6500000,null,null,null,"Казьмин А.П.",null,null,null,null,null,null,"СЭ","Стройсервис",null,null,"2023-06-01","2023-09-30"]
[null,"Полевая Сабировская 49",null,"Капитальные строительные работы, в т.ч. Материалы","2.1","973 Работы по монтажу ограждения между бизнес-центром Полевая Сабировская 49 и ЖК «Богатырь»","перенос","разработка и устройство ограждения ","бюджет 2022 1 000 000",null,1000000,1000000,null,null,null,"Казьмин А.П.",null,null,null,null,null,null,"СЭ","Стройсервис",null,null,"2023-06-01","2023-09-30"]
[null,"Полевая Сабировская 49",null,"Капитальные строительные работы, в т.ч. Материалы","2.1"," 974 Работы по обустройству  контейнерной площадки","перенос","разработка и устройство крытой контейнерной площадки с ограничением доступа","бюджет 2022 500 000",null,500000,500000,null,null,null,"Казьмин А.П.",null,null,null,null,null,null,"СЭ","Стройсервис",null,null,"2023-06-01","2023-09-30"]
[null,"Полевая Сабировская 49",null,"Текущие ремонтные и эксплуатационные расходы","3.2","670 Ремонт и замена  фурнитуры оконных конструкций","перенос","увеличение в связи с удорожанием комплектующих","бюджет 2022 300 000",null,400000,400000,null,null,null,"Казьмин А.П.",null,null,null,null,null,null,"СЭ","Стройсервис",null,null,"2023-06-01","2023-09-30"]
[null,"Полевая Сабировская 49",null,"Текущие ремонтные и эксплуатационные расходы","2.2","Ямочный ремонт асфальта","новая работа","по результатам осенне- зимнего периода",null,null,700000,700000,null,null,null,"Казьмин А.П.",null,null,null,null,null,null,"СЭ","Стройсервис",null,null,"2023-06-01","2023-09-30"]
[null,"Луга",null,"Приобретение произ-го, торг-го и складского оборудования",null,"Резервирование водоснабжения, установка емкости и насосной группы ","новая работа","обеспечение бесперебойного водоснабжения СТЦ",null,null,250000,250000,null,null,null,"Казьмин А.П.",null,null,null,null,null,null,"СЭ",null,null,null,"2023-05-01","2023-07-01"]
[null,"Луга",null,"Проектно-изыскательские работы, получение ТУ",null,"Выполнение электроизмерительных работ в торговом зале и складской зоне","новая работа","регламент ПТЭЭП",null,null,100000,100000,null,null,null,"Казьмин А.П.","красный",null,null,null,null,null,"СЭ",null,null,null,"2023-03-01","2023-04-01"]
[null,"Луга",null,"Текущие ремонтные и эксплуатационные расходы",null,"Ремонт контура заземления ВРУ","новая работа","регламент ПТЭЭП","стоимость обл.орг.",null,100000,100000,null,null,null,"Казьмин А.П.",null,null,null,null,null,null,"СЭ",null,null,null,"2023-01-01","2023-02-01"]
[null,"Луга",null,"Проектно-изыскательские работы, получение ТУ",null,"Выполнение исполнительной схемы электроснабжения,маркировка электрощитов","новая работа","регламент ПТЭЭП",null,null,100000,100000,null,null,null,"Казьмин А.П.",null,null,null,null,null,null,"СЭ",null,null,null,"2023-01-01","2023-02-01"]
[null,"Луга",null,"Текущие ремонтные и эксплуатационные расходы",null,"Монтаж верикальных подвесов для крепления лотка ЭО в ТЗ","новая работа","противоаварийиные работы",null,null,200000,200000,null,null,null,"Казьмин А.П.","красный",null,null,null,null,null,"СЭ",null,null,null,"2023-04-01","2023-05-01"]
[null,"Луга",null,"Текущие ремонтные и эксплуатационные расходы",null,"Обтяжка болтовых соединений навеса ООО СК Луга (каркас РУУККИ)","новая работа","тех.обслуживание",null,null,100000,100000,null,null,null,"Казьмин А.П.",null,null,null,null,null,null,"СЭ",null,null,null,"2023-07-01","2023-08-01"]
[null,"Новгород",null,"Приобретение произ-го, торг-го и складского оборудования","6.2","Резервирование водоснабжения, установка емкости и насосной группы ","новая работа","обеспечение бесперебойного водоснабжения СТЦ",null,null,250000,250000,null,null,null,"Казьмин А.П.",null,null,null,null,null,null,"СЭ",null,null,null,"2023-07-01","2023-08-01"]
[null,"Новгород",null,"Текущие ремонтные и эксплуатационные расходы","3.2","Ремонт/замена труб водосточ.с-мы на складе","новая работа","требования ТЭ с-мы водостока",null,null,300000,300000,null,null,null,"Казьмин А.П.",null,null,null,null,null,null,"СЭ"]
[null,"Новгород",null,"Текущие ремонтные и эксплуатационные расходы","3.2","Обтяжка болтовых соединений ТЗ НОВ 022 (каркас РУУККИ)","новая работа","тех.обслуживание",null,null,200000,200000,null,null,null,"Казьмин А.П.",null,null,null,null,null,null,"СЭ",null,null,null,"2023-11-01","2023-12-01"]
[null,"Славянка",null,"Текущие ремонтные и эксплуатационные расходы","2.2","Ремонт ограждения периметра.","новая работа","тех.состояние",null,null,100000,100000,null,null,null,"Казьмин А.П.",null,null,null,null,null,null,"СЭ",null,null,null,"2023-04-01","2023-05-31"]
[null,"Славянка",null,"Текущие ремонтные и эксплуатационные расходы","1.2","Ремонт кровли склад №8","новая работа","Строение 2-х этажное. Негерметичная кровля протекает до 1-го этажа. Второй этаж не эксплуатируется.Требуется ремонт кровельного покрытия, герметизация стыков и примыканий битумной лентой или иными способами, замена кровельных саморезов.","Протечки",null,180000,180000,null,null,null,"Казьмин А.П.",null,null,null,null,null,null,"СЭ"]
[null,"Славянка",null,"Текущие ремонтные и эксплуатационные расходы","3.2","Ремонт лестницы склад 010  в соответствие с требованиями ПБ и ГОСТ","новая работа","После проведения обследования выявлены нарушения по высоте ступеней","Замечание ПБ",null,150000,150000,null,null,null,"Казьмин А.П.",null,null,null,null,null,null,"СЭ",null,null,null,"2023-02-01","2023-03-31"]
[null,"Славянка",null,"Текущие ремонтные и эксплуатационные расходы","3.2","Реконструкция лестницы МСЛ 004","новая работа","После проведения обследования выявлены нарушения по высоте верхней площадки. Допущен ненормативный перепад высоты.","Замечание ПБ.",null,120000,120000,null,null,null,"Казьмин А.П.",null,null,null,null,null,null,"СЭ"]
[null,"Славянка",null,"Текущие ремонтные и эксплуатационные расходы","3.2","Покраска лестниц","новая работа","800р/м2*600м2",null,null,480000,480000,null,null,null,"Казьмин А.П.",null,null,null,null,null,null,"СЭ",null,null,null,"2023-06-01","2023-08-31"]
[null,"Славянка",null,"Текущие ремонтные и эксплуатационные расходы","3.2","Антикоррозийная обработка несущих конструкций складов : МСЛ 006-900м2, МСЛ 008-260 м2 , МСЛ 029-90 м2","новая работа","тех состояние",null,null,1000000,1000000,null,null,null,"Казьмин А.П.",null,null,null,null,null,null,"СЭ"]
[null,"Славянка",null,"Проектно-изыскательские работы, получение ТУ","7.1","Обследование несущих конструкций склада МСЛ 006\nАР, КМ.","новая работа","Отсутствует исходно-разрешительная документация",null,null,150000,150000,null,null,null,"Казьмин А.П.",null,null,null,null,null,null,"СЭ"]
[null,"Славянка",null,"Текущие ремонтные и эксплуатационные расходы","3.2","Гидроизоляция цоколя, устройство водоотливов теплый склад, МСЛ.004","новая работа","тех состояние",null,null,250000,250000,null,null,null,"Казьмин А.П.",null,null,null,null,null,null,"СЭ"]
[null,"Славянка",null,"Текущие ремонтные и эксплуатационные расходы","1.2","Ремонт водоотводов на базе,установка снегозадержателей на МСЛ 004,002.","новая работа","тех состояние",null,null,350000,350000,null,null,null,"Казьмин А.П.",null,null,null,null,null,null,"СЭ",null,null,null,"2023-06-01","2023-08-31"]
[null,"Славянка",null,"Капитальные строительные работы, в т.ч. Материалы","9.1","Устройство АПС 5 го склада.","новая работа","По аналогии с  МСЛ 059",null,null,400000,400000,null,null,null,"Казьмин А.П.",null,null,null,null,null,null,"СЭ",null,null,null,"2023-05-01","2023-08-31"]
[null,"Славянка",null,"Текущие ремонтные и эксплуатационные расходы","2.2","Замена накренившуюся опору освещения на поворотную","новая работа","КП подрядчика",null,null,200000,200000,null,null,null,"Казьмин А.П.",null,null,null,null,null,null,"СЭ",null,null,null,"2023-04-01","2023-08-31"]
[null,"Славянка",null,"Текущие ремонтные и эксплуатационные расходы","2.2","Ямочный ремонт а/б покрытия более 650 м2","новая работа","В 2022 году стоимость работ 2300р/м2",null,null,1750000,1750000,null,null,null,"Казьмин А.П.",null,null,null,null,null,null,"СЭ",null,null,null,"2023-06-01","2023-08-31"]
[null,"Славянка",null,"Текущие ремонтные и эксплуатационные расходы","4.2","Ревизия электросетей  на СТЦ .Обследование, проектирование заземления и молниезащиты.","новая работа","Обследование эл.сетей. Демонтаж неиспользуемых сетей, устранение провисов кабельных линий.",null,null,300000,300000,null,null,null,"Казьмин А.П.",null,null,null,null,null,null,"СЭ",null,null,null,"2023-04-01","2023-08-31"]
[null,"Славянка",null,"Текущие ремонтные и эксплуатационные расходы","3.2","ТО здания торгового зала (спайдер)-проверка натяжения гибких связей, осмотро, натяжка","новая работа","В рамках технической эксплуатации сооружений подобного типа.",null,null,100000,100000,null,null,null,"Казьмин А.П.",null,null,null,null,null,null,"СЭ",null,null,null,"2023-04-01","2023-09-01"]
[null,"Славянка",null,"Текущие ремонтные и эксплуатационные расходы","2.2","Устройство выравнивающего  а/б слоя 5-го склада","новая работа","Устройство а/б покрытия в проезда после устройства стеллажей ",null,null,950000,950000,null,null,null,"Казьмин А.П.",null,null,null,null,null,null,"СЭ",null,null,null,"2023-06-01","2023-08-31"]
[null,"Славянка",null,"Текущие ремонтные и эксплуатационные расходы","2.2","Устройство дождеприёмного колодца с врезкой в ливневую канализацию МСЛ008","новая работа","Для сбора сточных вод в нижней точке рельефа и отведения в канализацию.",null,null,300000,300000,null,null,null,"Казьмин А.П.",null,null,null,null,null,null,"СЭ",null,null,null,"2023-04-02","2023-09-01"]
[null,"КАД Север",null,"Текущие ремонтные и эксплуатационные расходы","1.2","Ремонт с модернизацией водосточной системы ангаров","новая работа","замена деформированных водостоков",null,null,650000,650000,null,null,null,"Казьмин А.П.",null,null,null,"СЗФО",null,null,"СЭ",null,null,null,"2023-06-01","2023-06-30"]
[null,"КАД Север",null,"Текущие ремонтные и эксплуатационные расходы","1.2","Ремонт кровли здания СТЦ","новая работа","Поиск и устранение протечек",null,null,500000,500000,null,null,null,"Казьмин А.П.",null,null,null,"СЗФО",null,null,"СЭ",null,null,null,"2023-07-01","2023-07-31"]
[null,"КАД Север",null,"Текущие ремонтные и эксплуатационные расходы","9.2","Замена АКБ (система СОУЭ)","новая работа","замена в связи с выходом из строя (нижкая остаточная емкость)","Замечание ПБ",null,270000,270000,null,null,null,"Казьмин А.П.",null,null,null,"СЗФО",null,null,"СЭ",null,null,null,"2023-04-01","2023-04-30"]
[null,"КАД Север",null,"Текущие ремонтные и эксплуатационные расходы","9.2","Замена шкафов ПК","новая работа","замена в связи с повреждениями","Замечание ПБ",null,190000,190000,null,null,null,"Казьмин А.П.",null,null,null,"СЗФО",null,null,"СЭ",null,null,null,"2023-08-01","2023-08-31"]
[null,"КАД Север",null,"Текущие ремонтные и эксплуатационные расходы","2.2","Защита опор освещения на парковке + выравнивание 2-х опор","новая работа","Выравнивание по вертикали 2-х опор и установка защиты от наезда автотранспортом",null,null,600000,600000,null,null,null,"Казьмин А.П.",null,null,null,"СЗФО",null,null,"СЭ",null,null,null,"2023-07-01","2023-07-31"]
[null,"КАД Север",null,"Текущие ремонтные и эксплуатационные расходы","4.2","Замена прожекторов подсветки фасада","новая работа","замена в связи с выходом из строя",null,null,300000,300000,null,null,null,"Казьмин А.П.",null,null,null,"СЗФО",null,null,"СЭ",null,null,null,"2023-06-01","2023-06-30"]
[null,"КАД Север",null,"Проектно-изыскательские работы, получение ТУ","7.1","Актуализация однолинейных схем эл. щитов ","новая работа","проверка всех эл.щитов и приведение однолинейных схем в соответствие с фактическим укомплектованием",null,null,250000,250000,null,null,null,"Казьмин А.П.",null,null,null,"СЗФО",null,null,"СЭ",null,null,null,"2023-04-01","2023-04-30"]
[null,"КАД Север",null,"Текущие ремонтные и эксплуатационные расходы","3.2","Герметизация примыкания светового окна (поликарбонат) и конька кровли на ангарах","новая работа","устранение причин негативного воздействия погодных осадков",null,null,300000,300000,null,null,null,"Казьмин А.П.",null,null,null,"СЗФО",null,null,"СЭ",null,null,null,"2022-06-01","2022-06-30"]
[null,"КАД Север",null,"Текущие ремонтные и эксплуатационные расходы","1.2","Установка аэраторов на кровле СТЦ","новая работа","отсутствуют",null,null,408000,408000,null,null,null,"Казьмин А.П.",null,null,null,"СЗФО",null,null,"СЭ",null,null,null,"2023-07-01","2023-07-31"]
[null,"Парнас",null,"Текущие ремонтные и эксплуатационные расходы",null,"Ремонт асфальтобетонного покрытия (480 м2, 576 м2- 2 карты включая ямочный))","новая работа","В связи с износом покрытия, просадкой грунта. 2 этапа","Средняя стоимость по 2022 г.+ 10%",null,2800000,2800000,null,null,null,"Казьмин А.П.",null,null,null,null,null,null,"СЭ",null,null,null,"2023-05-01","2023-09-01"]
[null,"Парнас",null,"Приобретение произ-го, торг-го и складского оборудования",null,"Резервирование водоснабжения, установка емкости и насосной группы ","новая работа","обеспечение бесперебойного водоснабжения СТЦ",null,null,250000,250000,null,null,null,"Казьмин А.П.",null,null,null,null,null,null,"СЭ"]
[null,"Парнас",null,"Текущие ремонтные и эксплуатационные расходы",null,"Замена противопожарных дверей 2шт ","новая работа","Износ ","Рыночная стоимость",null,80000,80000,null,null,null,"Казьмин А.П.",null,null,null,null,null,null,"СЭ",null,null,null,"2023-05-01","2023-06-01"]
[null,"Парнас",null,"Текущие ремонтные и эксплуатационные расходы",null,"Ремонт колодцев (105, 133 дренажный) ","новая работа","Износ оборудования","Стоимость ДСК 15",null,260000,260000,null,null,null,"Казьмин А.П.",null,null,null,null,null,null,"СЭ",null,null,null,"2023-04-20","2023-05-10"]
[null,"Парнас",null,"Текущие ремонтные и эксплуатационные расходы",null,"Устройство наружной решетки системы забора воздуха ПВ6 (встройка торгового зала)","новая работа","Некорректная работа ПВ 6",null,null,180000,180000,null,null,null,"Казьмин А.П.",null,null,null,null,null,null,"СЭ",null,null,null,"2023-04-20","2023-05-30"]
[null,"Парнас",null,"Проектно-изыскательские работы, получение ТУ",null,"Обмерный план складов ПАР 057,058,059 (АР,КМ)","новая работа"," Исполнительная документация ","РиК (3х80т.р.)",null,240000,240000,null,null,null,"Казьмин А.П.",null,null,null,null,null,null,"СЭ",null,null,null,"2023-02-10","15.03.2023."]
[null,"Кингисепп",null,"Проектно-изыскательские работы, получение ТУ","7.1","Однолинейные схемы всей базы.","новая работа","Отсутствуют однолинейные схемы всего объекта.","Средняя цена по рынку.",null,250000,250000,null,null,null,"Казьмин А.П.",null,null,null,null,null,null,"СЭ"]
[null,"Кингисепп",null,"Текущие ремонтные и эксплуатационные расходы","4.2","Приведение линий эл линии в порядок, расположены на заборе между ГРЩ и постом охраны. ","новая работа","линии электроснабжения в беспорядке, необходимо поднять и поместить в короб","Стоимость услуг ИП Максим Борисович.",null,90000,90000,null,null,null,"Казьмин А.П.",null,null,null,null,null,null,"СЭ"]
[null,"Кингисепп",null,"Приобретение произ-го, торг-го и складского оборудования","6.2","Резервирование водоснабжения, установка емкости и насосной группы ","новая работа","обеспечение бесперебойного водоснабжения СТЦ",null,null,250000,250000,null,null,null,"Казьмин А.П.",null,null,null,null,null,null,"СЭ"]
[null,"Кингисепп",null,"Текущие ремонтные и эксплуатационные расходы","3.2","Произвести ТО и перетяжку тентов на тентовом складе.","новая работа","Требуется произвести визуальный осмотр тентового покрытия,протяжку болтовых соединени, натяжение тросовых усилений, натяжение тентового покрытия.","Цены 2021г + 20%.",null,140000,140000,null,null,null,"Казьмин А.П.",null,null,null,null,null,null,"СЭ"]
[null,"Кингисепп",null,"Капитальные строительные работы, в т.ч. Материалы","1.1","Реконструкция кровли в месте соединения зданий старого и нового торгового зала,","новая работа","1.Произвести обследование несущих конструкций конструкций. 2. Составить проект. 3. СМР. (работы планируется выполнять силами подрядчика). Водосточная ситема между старым и новым торговым залом протекает,  сейчас чкетырехскатная, будет одна двускатная",null,null,10000000,10000000,null,null,null,"Казьмин А.П.",null,null,null,null,null,null,"СЭ"]
[null,"Кингисепп",null,"Текущие ремонтные и эксплуатационные расходы","2.2","Ямочный ремонт а/б покрытия720 м2","новая работа",null,"цены в 2022г 2300м2 +10%",null,1800000,1800000,null,null,null,"Казьмин А.П.",null,null,null,null,null,null,"СЭ"]
[null,"Кингисепп",null,"Приобретение произ-го, торг-го и складского оборудования","5.2","Произвести реконструкцию системы ГВС с демонтажем существующего оборудования и монтажом нового. Котельная, установка нового узла и оборудования","новая работа","повышение парамтеров ГВС. Работы своими силами, запланирована стоимость оборудования",null,null,500000,500000,null,null,null,"Казьмин А.П.",null,null,null,null,null,null,"СЭ"]
[null,"Гатчина",null,"Текущие ремонтные и эксплуатационные расходы","3.2","Ремонт пандуса СКУИ6 ГАТ О.048","новая работа","разрушение бетонного пандуса ",null,null,400000,400000,null,null,null,"Казьмин А.П.",null,null,null,null,null,null,"СЭ"]
[null,"Гатчина",null,"Текущие ремонтные и эксплуатационные расходы","1.2","Ремонт кровли теплого склада 800 кв.м. ГАТ.О.002","новая работа","трещины шиферного основания, разрушение наплавляемой гидризоляции. Протечки",null,null,3000000,3000000,null,null,null,"Казьмин А.П.",null,null,null,null,null,null,"СЭ"]
[null,"Гатчина",null,"Текущие ремонтные и эксплуатационные расходы","2.2","Ремонт основания под АБ покрытие включая АБ покрытие Склад 4. ГАТ О.021 ","новая работа","просадка АБ покрытия 120м2, ","усиление основание(геосетка, ЩПС)\nукладка АБ",null,500000,500000,null,null,null,"Казьмин А.П.",null,null,null,null,null,null,"СЭ"]
[null,"Гатчина",null,"Текущие ремонтные и эксплуатационные расходы","3.2","Ремонт пандуса склада 5 ГАТ О.041","новая работа","разрушение бетонного пандуса, выкрашивание щебня. 20м2","требуется армирование, заливка бетоном",null,300000,300000,null,null,null,"Казьмин А.П.",null,null,null,null,null,null,"СЭ"]
[null,"Гатчина",null,"Текущие ремонтные и эксплуатационные расходы","3.2","Ремонт пандусов павильона сезонных товаров","новая работа","разрушение бетонного пандусов, выкрашивание щебня.","ремсостав ПРОФСКРИН RC60-10шт по 4500р , \nработы 12м2-по 1000р, и др.",null,100000,100000,null,null,null,"Казьмин А.П.",null,null,null,null,null,null,"СЭ"]
[null,"Гатчина",null,"Текущие ремонтные и эксплуатационные расходы","2.2","Ремонт АБ покрытия по территории. 770 м2","новая работа","ремонт повреждений покрытия после осенне- зимнего периода.","В 2022 году стоимость работ 2300р/м2",null,1770000,1770000,null,null,null,"Казьмин А.П.",null,null,null,null,null,null,"СЭ"]
[null,"Гатчина",null,"Текущие ремонтные и эксплуатационные расходы","4.2","Ремонт шкафа ЩС2","новая работа","коррозия щита, покраска корпуса",null,null,50000,50000,null,null,null,"Казьмин А.П.",null,null,null,null,null,null,"СЭ"]
[null,"Гатчина",null,"Текущие ремонтные и эксплуатационные расходы","3.2","Замена эвакуационной двери ТЗ","новая работа","коррозионное разрушение коробки и полотна","дверь 40000\nработа40000",null,80000,{"$f":"K321","v":80000},null,null,null,"Казьмин А.П.",null,null,null,null,null,null,"СЭ"]
[null,"Мурманская 2",null,"Текущие ремонтные и эксплуатационные расходы","3.2","Установить отбойники у распределительных щитов при входе из разгрузочной зоны в САХ в осях 12-13/В2","новая работа","Требование нормативных и правовых актов в области ПБ","Не вошло в реконструкцию",null,90000,90000,null,null,null,"Казьмин А.П.",null,null,null,"СЗФО",null,null,"СЭ",null,null,null,"2023-02-01","2023-03-01"]
[null,"Мурманская 2",null,"Текущие ремонтные и эксплуатационные расходы","6.2","Окраска фланцев в водомерном узле (в поле)","новая работа","Требование нормативных и правовых актов в области ПБ","Не вошло в реконструкцию",null,30000,30000,null,null,null,"Казьмин А.П.",null,null,null,"СЗФО",null,null,"СЭ",null,null,null,"2023-05-01","2023-06-01"]
[null,"Мурманская 2",null,"Текущие ремонтные и эксплуатационные расходы","2.2","Регулировка колодца КНС3  по высоте ","новая работа","Заложил больше, на регулировку других колодцев после прохождения зимнего сезона","Не вошло в реконструкцию",null,50000,50000,null,null,null,"Казьмин А.П.",null,null,null,"СЗФО",null,null,"СЭ",null,null,null,"2023-06-01","2023-07-01"]
[null,"Мурманская 2",null,"Текущие ремонтные и эксплуатационные расходы","2.2","Ямочный ремонт асфальтобетонного покрытия площадью 400 кв. м","новая работа","Асфальт в ангарах между ростверками не гарантийный и клался зимой","Не вошло в реконструкцию",null,1000000,1000000,null,null,null,"Казьмин А.П.",null,null,null,"СЗФО",null,null,"СЭ",null,null,null,"2023-05-01","2023-06-01"]
[null,"Мурманская 2",null,"Текущие ремонтные и эксплуатационные расходы","3.2","Замена эвакуационной двери 800 мм в осях 14/Е-Д2 ","новая работа","замена не входила рамки  реконструкции объекта","Не вошло в реконструкцию",null,50000,50000,null,null,null,"Казьмин А.П.",null,null,null,"СЗФО",null,null,"СЭ",null,null,null,"2023-04-01","2023-05-01"]
[null,"Мурманская 2",null,"Текущие ремонтные и эксплуатационные расходы","3.2","Окраска металлоконструкций на кровле под КББ и вентустановки","новая работа","коррозия, не попали в зону реконструкцию","Не вошло в реконструкцию",null,200000,200000,null,null,null,"Казьмин А.П.",null,null,null,"СЗФО",null,null,"СЭ",null,null,null,"2023-07-01","2023-08-01"]
[null,"Мурманская 2",null,"Проектно-изыскательские работы, получение ТУ","7.1","Оформление в собственость газопровода линейного объекта","новая работа","уточнить цену","Не вошло в реконструкцию",null,70000,70000,null,null,null,"Казьмин А.П.",null,null,null,null,null,null,"СЭ"]
[null,"Мурманская 2",null,"Текущие ремонтные и эксплуатационные расходы","1.2","Установка аэраторов","новая работа",null,"Не вошло в реконструкцию",null,450000,450000,null,null,null,"Казьмин А.П.",null,null,null,"СЗФО",null,null,"СЭ",null,null,null,"2023-07-01","2023-08-01"]
[null,"Мурманская 2",null,"Текущие ремонтные и эксплуатационные расходы","1.2","Локальный ремонт, поиск протечек кровли","новая работа","5000 кв.м по 50 руб.",null,null,250000,250000,null,null,null,"Казьмин А.П.",null,null,null,"СЗФО",null,null,"СЭ",null,null,null,"2023-07-01","2023-07-31"]
[null,"Мурманская 2",null,"Текущие ремонтные и эксплуатационные расходы","4.2","Замена светильников на опорах освещения парковки клиентов в замен вышедших из строя","новая работа","Текущая эксплуатация",null,null,500000,500000,null,null,null,"Казьмин А.П.",null,null,null,"СЗФО",null,null,"СЭ",null,null,null,"2023-01-01","2023-12-01"]
[null,"Мурманская 2",null,"Текущие ремонтные и эксплуатационные расходы","6.2","антикоррозийная обработка и окраска трубопровода в водомерном узле в пом. 119","новая работа","весенний осмотр","Не вошло в реконструкцию",null,50000,50000,null,null,null,"Казьмин А.П.",null,null,null,"СЗФО",null,null,"СЭ",null,null,null,"2023-04-01","2023-05-01"]
[null,"Индустриальный","ИНД.000","Приобретение произ-го, торг-го и складского оборудования","6.2","Резервирование водоснабжения, установка емкости и насосной группы ","новая работа","Обеспечение бесперебойного водоснабжения СТЦ","Устройство накопительной емкости с насосной группой.\nПодключение к системе ХВС.",null,250000,250000,null,null,null,"Казьмин А.П.",null,null,null,"СЗФО",null,null,"СЭ",null,null,null,"2023-04-01","2023-06-01"]
[null,"Индустриальный","ИНД.048","Текущие ремонтные и эксплуатационные расходы","4.2","Полная замена осветительных приборов в торговом зале с прокладкой новых линий ИНД.048 и демонтаж старых, часть с аварийным освещением с ИБП","новая работа","Безопасность.\nЕстественный износ оборудования.\nЭкономия на работах связанных с периодической заменой светильников ","Демонтаж неисправных и устаревших светильников\nМонтаж новых светильников\n",null,7000000,7000000,null,null,null,"Казьмин А.П.",null,null,null,"СЗФО",null,null,"СЭ",null,null,null,"2023-07-01","2023-09-01"]
[null,"Индустриальный","ИНД.115","Текущие ремонтные и эксплуатационные расходы","3.2","Гидроизоляционная защита бетонных фундаментов СКУИ и Консольных стеллажных конструкций. ","новая работа","Защита от преждевременного износа бетонных конструкций стеллажного оборудования.","Гидроизоляция бетонных фундаментов - 147,5м2; \nПокраска фасонных элементов и водоотливов - 21 п/м.",null,70000,70000,null,null,null,"Казьмин А.П.",null,null,null,"СЗФО",null,null,"СЭ",null,null,null,"2023-04-01","2023-06-01"]
[null,"Индустриальный",null,"Текущие ремонтные и эксплуатационные расходы","1.2","Ремонт водосточной системы на зданиях и складах.","новая работа","Восстановление работоспособности водосточных систем ЗиС.\n","Демонтаж - труба водосточная 41 п.м.;\nжелоба 33 п.м.\nМонтаж - труба водосточная 41 п.м.;\nжелоба 33 п.м.\nВероятна корректировка объемов работ после весеннего осмотра.",null,350000,350000,null,null,null,"Казьмин А.П.",null,null,null,"СЗФО",null,null,"СЭ",null,null,null,"2023-04-01","2023-06-01"]
[null,"Индустриальный","ИНД.030","Текущие ремонтные и эксплуатационные расходы","2.2","Ремонт заборного ограждения периметра.","новая работа","Безопасность ИК.\nВосстановление целостности ограждения территории.","Восстановление проектного положения опор, частичная замена опор по необходимости - 24 п/м",null,70000,70000,null,null,null,"Казьмин А.П.",null,null,null,"СЗФО",null,null,"СЭ",null,null,null,"2023-04-01","2023-06-01"]
[null,"Индустриальный",null,"Капитальные строительные работы, в т.ч. Материалы","2.1","Замена заборного ограждения со стороны Лапинского пр.с профлиста на профтрубу 126 п.м.","новая работа","Требование ГАТИ Проект утвержден ГАТИ)  , не выполнение -штраф",null,null,1300000,1300000,null,null,null,"Казьмин А.П.",null,null,null,"СЗФО",null,null,"СЭ",null,null,null,"2023-04-01","2023-06-01"]
[null,"Индустриальный",null,"Текущие ремонтные и эксплуатационные расходы","2.2","Ямочный ремонт асфальтобетонного покрытия.","новая работа","Ямочный ремонт.","800 м2",null,2200000,2200000,null,null,null,"Казьмин А.П.",null,null,null,"СЗФО",null,null,"СЭ",null,null,null,"2023-04-01","2023-06-01"]
[null,"Индустриальный","ИНД.048; ИНД.109","Текущие ремонтные и эксплуатационные расходы","1.2","Устройство аэраторов на кровле зданий ИНД.048, ИНД.109","новая работа","Обеспечение вентиляции кровельного утеплителя. Повышение энергоэффективности зданий.","Общая площадь - 9 511 кв.м.\nИНД.048 - устройство доп. Аэраторов в  ПВХ кровле - 24 шт\nУстройство доп.аэраторов в битумной кровле - 4 шт.\nИНД.109 - устройство доп. Аэраторов в  ПВХ кровле - 30 шт.",null,300000,300000,null,null,null,"Казьмин А.П.",null,null,null,"СЗФО",null,null,"СЭ",null,null,null,"2023-07-01","2023-09-01"]
[null,"Индустриальный","ИНД.112; ИНД.113","Текущие ремонтные и эксплуатационные расходы","3.2","Локальная замена проф.листа перекрытия с настилом из фанеры.","новая работа","Восстановление несущей способности перекрытия.\nЗамена поврежденных проф.листов перекрытия","Демонтаж кровельного пирога из фанеры и проф.листа.\nМонтаж кровельного пирога из фанеры и профлиста\nНа площадях: \nИНД.112 - 468м2; \nИНД.113-1170м2",null,4400000,4400000,null,null,null,"Казьмин А.П.",null,null,null,"СЗФО",null,null,"СЭ",null,null,null,"2023-07-01","2023-09-01"]
[null,"Индустриальный","ИНД.109","Текущие ремонтные и эксплуатационные расходы","3.2","Ремонт ограждающих конструкций здания","новая работа","Безопасность.\nЭнергоэффективность здания","Змена поврежденных ограждающих элементов здания 4 панели- 22,2м2; и фасонные элементы -42,2п/м",null,300000,300000,null,null,null,"Казьмин А.П.",null,null,null,"СЗФО",null,null,"СЭ",null,null,null,"2023-07-01","2023-09-01"]
[null,"Выборг",null,"Приобретение произ-го, торг-го и складского оборудования","6.2","Резервирование водоснабжения, установка емкости и насосной группы ","новая работа","обеспечение бесперебойного водоснабжения СТЦ",null,null,50000,50000,null,null,null,"Казьмин А.П.",null,null,null,"СЗФО",null,null,"СЭ",null,null,null,"2023-07-01","2023-07-31"]
[null,"Выборг",null,"Текущие ремонтные и эксплуатационные расходы","3.2","Косметический ремонт помещения котельной","новая работа","по итогам весеннего осмотра",null,null,50000,50000,null,null,null,"Казьмин А.П.",null,null,null,"СЗФО",null,null,"СЭ",null,null,null,"2023-06-01","2023-06-30"]
[null,"Выборг",null,"Текущие ремонтные и эксплуатационные расходы","3.2","Косметический ремонт помещения водомерного узла","новая работа","по итогам весеннего осмотра",null,null,40000,40000,null,null,null,"Казьмин А.П.",null,null,null,"СЗФО",null,null,"СЭ",null,null,null,"2023-06-01","2023-06-30"]
[null,"Выборг",null,"Текущие ремонтные и эксплуатационные расходы","6.2","Устройство защиты узла учёта в водомерном узле","новая работа","Требуется защита от механического воздействия на ПУ",null,null,50000,50000,null,null,null,"Казьмин А.П.",null,null,null,"СЗФО",null,null,"СЭ",null,null,null,"2023-06-01","2023-06-30"]
[null,"Выборг",null,"Текущие ремонтные и эксплуатационные расходы","11.2","Замена блока диспетчеризации в котельной","новая работа","по итогам весеннего осмотра",null,null,50000,50000,null,null,null,"Казьмин А.П.",null,null,null,"СЗФО",null,null,"СЭ",null,null,null,"2023-06-01","2023-06-30"]
[null,"Софийская",null,"Текущие ремонтные и эксплуатационные расходы","2.2","Ямочный ремонт дорожного покрытия на территории складского комплекса и парковке. Ремонт и регулировка колодцев ливневой и хозяйственно-бытовой канализации.","новая работа","По опыту работы, необходимость в проведении ямочного ремонта возникала ежегодно. Средний объём ремонта за последние 3 года составил 588,85 м.кв. в год. Фактичекий объём текущего ремонта можно уточнить только по окончании зимнего периода (март 2023 г.)","Плановая стоимость указана исходя из среднего объёма работ за истекшие 3 года (600 м.кв.) и стоимости работ+10% за 2022 г. (2340,56+10% = 2600,00 за 1 м.кв.)",null,1560000,1560000,null,null,null,"Казьмин А.П.",null,null,null,"СЗФО",null,null,"СЭ",null,null,null,"2023-05-01","2023-06-30"]
[null,"Софийская",null,"Текущие ремонтные и эксплуатационные расходы","1.2","Установка кровельных аэраторов на кровли зданий.","новая работа","Общая площадь кровель зданий составляет 7019,1 м.кв. Требуемое общее количество аэраторов - 71 шт.",null,null,213000,213000,null,null,null,"Казьмин А.П.",null,null,null,"СЗФО",null,null,"СЭ",null,null,null,"2023-07-01","2023-08-31"]
[null,"Софийская",null,"Текущие ремонтные и эксплуатационные расходы","1.2","Обследование и последующее устранение протечек кровли здания \"Ремонтной зоны\" (ЮЖН.002) в местах примыкания водоизоляционного ковра к установленному на кровле оборудованию (люкам дымоудаления, вентиляционным шахтам, местам проходов кабелей, фреонопроводов)","новая работа","Кровля здания ремонтной зоны (ЮЖН.002) (наплавляемая) S=622,64 м.кв. Вентиляционная шахта - 4 шт. Люк противопожарный  - 1 шт. Люк дымоудаления - 4 шт. Места прохода кабелей и фреонопроводов - 4 шт.",null,null,250000,250000,null,null,null,"Казьмин А.П.",null,null,null,"СЗФО",null,null,"СЭ",null,null,null,"2023-05-01","2023-06-30"]
[null,"Софийская",null,"Приобретение произ-го, торг-го и складского оборудования","6.2","Резервирование водоснабжения, установка емкости и насосной группы ","новая работа","обеспечение бесперебойного водоснабжения СТЦ",null,null,250000,250000,null,null,null,"Казьмин А.П.",null,null,null,"СЗФО",null,null,"СЭ",null,null,null,"2023-02-01","2023-03-31"]
[null,"Софийская",null,"Текущие ремонтные и эксплуатационные расходы","2.2","Ремонт и модернизация мобильного ограждения площадки ТБО (ЮЖН.068)","новая работа","Общая длина элементов мобильного ограждения составляет 43,6 м.п. Необходимо предусмотреть крепление опор ограждения к асфальто-бетонному покрытию препятстующее опрокидыванию от воздействия ветровых нагрузок. ","Мобильное ограждение из профлиста имеет многочисленные повреждения. Для защиты от ветровых нагрузок закреплено к зданию водомерного узла и осветительным опорам.",null,150000,150000,null,null,null,"Казьмин А.П.",null,null,null,"СЗФО",null,null,"СЭ",null,null,null,"2023-06-01","2023-07-31"]
[null,"Софийская",null,"Капитальные строительные работы, в т.ч. Материалы","12.1","154 Закупка оборудования и монтаж систем приточно-вытяжной вентиляции, отопления и автоматизации в зарядной АКБ (навес металлический одноэтажный 6*12 ЮЖН.054)","перенос","В CAPEX 2022 были включены две задачи (перенос 2021 и № 154), в том числе, по проектированию, закупке и монтажу оборудования приточно-вытяжной вентиляции объекта, общей плановой стоимостью 1 401 600,00. До конца 2022 г. на эту сумму планируется провести работы по проектированию и прокладке теплопровода от ТГП-4 до объекта.","Остаток бюджета 2022 600 000. Стоимость оборудования иСМР требует гораздо больших затрат чем было запланировано в  2022 г. На данный момент располагаем коммерческими предложениями от двух подрядчиков со стоимостями: 2 381339,00 и 1 839 000,00.",null,3000000,3000000,null,null,null,"Казьмин А.П.",null,null,null,"СЗФО",null,null,"СЭ",null,null,null,"2023-04-01","2023-06-30"]
[null,"Софийская",null,"Текущие ремонтные и эксплуатационные расходы","2.2","Насосная станция и пожарные резервуары. Выполнить уклон пола в помещении насосной станции автоматической установки водяного пожаротушения в сторону приямка. Произвести гидроизоляцию проёмов плиты покрытия насосной станции и резервуаров в месте расположения лестницы и люков для установки оборудования. Произвести замену дренажного насоса. Произвести обследование и по необходимости очистку пожарных резервуаров.","новая работа","Обследование и по необходимости очистку пожарных резервуаров произвести при проведении ежегодной промывки трубопроводов и смены воды в пожарных резервуарах (входит в перечень регламентных работ) .",null,null,300000,300000,null,null,null,"Казьмин А.П.",null,null,null,"СЗФО",null,null,"СЭ",null,null,null,"2023-07-01","2023-09-30"]
[null,"Мурманская 2",null,"Капитальные строительные работы, в т.ч. Материалы","4.1","реализация ТУ на 500 кВт - СМП по созданию электроустановки (возможна прокладка кабеля)","новая работа","невыполненные БигБоксом ТУ Ленэнерго, нет возможности оформить АТП","Не вошло в реконструкцию",null,1500000,1500000,null,null,null,"Козыркин С.А.",null,null,null,"СЗФО",null,null,"СЭ"]
[null,"Софийская ",null,"Капитальные строительные работы, в т.ч. Материалы","6.1","хб очистные сооружения - строительство","новая работа","необходима очистка бытового стока на выпуске из здания. \"Грубые превышения\" при отборе проб Водоканалом ",null,null,5000000,5000000,null,null,null,"Козыркин С.А.",null,null,null,null,null,null,"СЭ"]
[null,"Гатчина",null,"Капитальные строительные работы, в т.ч. Материалы","10.1","720 газификация котельных","перенос","внутриплощадочный газлопровод, ГСВ, ТМ котельных","Остаток бюджета 2022 12 484 905,6",null,13600000,13600000,null,null,null,"Козыркин С.А.",null,null,null,null,null,null,"СЭ"]
[null,"Гатчина",null,"Капитальные строительные работы, в т.ч. Материалы","4.1","кап.ремонт КТП","новая работа","замена корпуса с рубильниками 10 и 0,4кВ, ветхое",null,null,1500000,1500000,null,null,null,"Козыркин С.А.",null,null,null,null,null,null,"СЭ"]
[null,"КАД Север",null,"Текущие ремонтные и эксплуатационные расходы","2.2","Демонтаж склада СУГ","новая работа","выведено из эксплуатации, возможно организация парковки",null,null,250000,250000,null,null,null,"Козыркин С.А.",null,null,null,null,null,null,"СЭ"]
[null,"КАД Север",null,"Капитальные строительные работы, в т.ч. Материалы","2.1","Организация парковки на складе СУГ","новая работа","уплотнение внутри резервуаров, асфальтирование","интересанта пока нет",null,null,0,null,null,null,"Козыркин С.А.",null,null,null,null,null,null,"СЭ"]
[null,"Парнас",null,"Текущие ремонтные и эксплуатационные расходы",null,"764 Ремонт участка тепловой сети","перенос","участок вдоль здания к ИТП 135 м.п.","бюджета 2022 1 000 000",null,2100000,2100000,null,null,null,"Козыркин С.А.",null,null,null,null,null,null,"СЭ"]
[null,"Служба эксплуатации",null,"Проектно-изыскательские работы, получение ТУ",null,"Изготовление проектов, обследования по необходимости","новая работа","не по задачам, для обследования и проектирования в т.ч. На 2024 год",null,null,3000000,3000000,null,null,null,"Казьмин А.П.",null,null,null,null,null,null,"СЭ"]
[null,"Горьковское",null,"Капитальные строительные работы, в т.ч. Материалы",null,"Проект энергоэффективности объекта  - датчики света, датчики реле","перенос","2 часть реализации проекта по энергоэф на все СТЦ ЦФО",null,null,400000,400000,null,null,null,"Борщев С.А.","красный",null,null,null,null,null,"СЭ",null,null,null,"1 кв.","4 кв."]
[null,"Новорязанское",null,"Капитальные строительные работы, в т.ч. Материалы",null,"Проект энергоэффективности объекта  - датчики света, датчики реле","перенос","2 часть реализации проекта по энергоэф на все СТЦ ЦФО",null,null,1000000,{"$f":"K364","v":1000000},null,null,null,"Борщев С.А.","красный",null,null,null,null,null,"СЭ",null,null,null,"1 кв.","4 кв."]
[null,"Н.Рижское",null,"Капитальные строительные работы, в т.ч. Материалы",null,"Проект энергоэффективности объекта  - датчики света, датчики реле","перенос","2 часть реализации проекта по энергоэф на все СТЦ ЦФО",null,null,500000,{"$f":"K365","v":500000},null,null,null,"Борщев С.А.","красный",null,null,null,null,null,"СЭ",null,null,null,"1 кв.","4 кв."]

{"sheet":"БК ","index":8,"n_rows":35,"n_cols":26,"rows_kept":35,"cut":false,"hidden":false,"merged":[[0,3,0,9],[0,22,0,28],[2,21,2,28],[3,0,3,28],[6,0,6,28],[8,4,8,12],[8,19,8,28],[9,4,9,12],[9,19,9,28],[13,0,13,28],[14,7,14,28],[16,0,16,20],[16,21,16,24],[16,25,16,28],[17,0,17,20],[17,21,17,24],[17,25,17,28],[18,0,18,20],[18,21,18,24],[18,25,18,28],[19,0,19,20],[19,21,19,24],[19,25,19,28],[20,0,20,20],[20,21,20,24],[20,25,20,28],[21,0,21,20],[21,21,21,24],[21,25,21,28],[22,0,22,20],[22,21,22,24],[22,25,22,28],[23,0,23,20],[23,21,23,24],[23,25,23,28],[24,0,24,20],[24,21,24,24],[24,25,24,28],[25,0,25,20],[25,21,25,24],[25,25,25,28],[26,25,26,28],[35,0,35,8],[35,10,35,18],[35,20,35,28],[28,26,28,28],[31,0,31,8],[31,10,31,18],[31,20,31,28],[32,2,32,8],[32,12,32,18],[32,22,32,28],[28,2,28,4],[28,6,28,8],[28,10,28,12],[28,14,28,16],[28,18,28,20],[28,22,28,24],[26,0,26,20],[26,21,26,24]]}
["Заявитель",null,null,"Бакин",null,null,null,null,null,null,null,{"$f":"CONCATENATE(H15,\" \",V3)","v":"БК "},null,null,null,null,null,null,null,null,"ГОД",null,"2023"]
[]
["Наименование работы",null,null,null,null,null,null,null,null,null,null,null,null,null,null,null,null,"Код работ"]
["Навес для ТБО"]
["(краткое описание работ)"]
["Цель"]
["Инфраструктура"]
["(необходимость выполнения, планируемый результат)"]
["Инициатор ",null,null,null,"Шаров А.",null,null,null,null,null,null,null,null,null,"Исп. Фамилия "]
["отдел",null,null,null,"Управляющий Базой",null,null,null,null,null,null,null,null,null,"Исп.(отдел)",null,null,null,null,"Служба эксплуатации"]
[]
[]
["Локация (СТЦ, адрес, территория)"]
["СТЦ Планерная"]
["Кодификатор объекта",null,null,null,null,null,null,"БК"]
["Подробное описание работ, этапность работ, объемы работ"]
["Этапы работ",null,null,null,null,null,null,null,null,null,null,null,null,null,null,null,null,null,null,null,null,"объемы",null,null,null,"стоимость"]
["Проектирование\n",null,null,null,null,null,null,null,null,null,null,null,null,null,null,null,null,null,null,null,null,null,null,null,null,100000]
["Демонтировать существующий навес 15х20",null,null,null,null,null,null,null,null,null,null,null,null,null,null,null,null,null,null,null,null,null,null,null,null,50000]
["Вынос опор, колодцев",null,null,null,null,null,null,null,null,null,null,null,null,null,null,null,null,null,null,null,null,"2 шт.",null,null,null,150000]
["Устройство фундамента 20х40",null,null,null,null,null,null,null,null,null,null,null,null,null,null,null,null,null,null,null,null,null,null,null,null,500000]
["Устройство металлоконструкций 20х40 х4 м",null,null,null,null,null,null,null,null,null,null,null,null,null,null,null,null,null,null,null,null,"3,5 т.",null,null,null,1000000]
["Освещение",null,null,null,null,null,null,null,null,null,null,null,null,null,null,null,null,null,null,null,null,null,null,null,null,30000]
["АПС",null,null,null,null,null,null,null,null,null,null,null,null,null,null,null,null,null,null,null,null,null,null,null,null,20000]
[]
[]
[]
[]
["Фото "]
["(ссылка на диск Х)"]
["Расчет стоимости с НДС"]
["Анализ расценки по КП",null,null,null,null,null,null,null,null,null,null,null,null,null,null,null,null,null,null,null,"Экспертная расценка заявителя"]
["Сумма ",null,null,null,null,null,null,null,null,null,"Сумма ",null,null,null,null,null,null,null,null,null,"Сумма ",null,{"$f":"SUM(Z18:AC27)","v":1850000}]
[]
["Методика расчета:",null,null,null,null,null,null,null,null,null,"Методика расчета:",null,null,null,null,null,null,null,null,null,"Методика расчета:"]